Workbook

Sheet Summary
E2: All Intra Main10 | P2: =CONCATENATE("Encoder run times for ", M3) -> Encoder run times for HM-16.22 Main10
E3: =CONCATENATE("Over ", $M$3) -> Over HM-16.22 Main10 | L3: Reference: | M3: HM-16.22 Main10 | Q3: AI | R3: RA | S3: LDB | T3: LDP | U3: All [hours] | V3: All [days]
C4: Y | D4: U | E4: V | F4: EncT | G4: DecT | L4: Tested: | M4: test | P4: Sum | Q4: ='AI-10'!#REF! ->  | R4: =#REF! ->  | S4: ='LDB-10'!L71 -> 0 | T4: ='LDP-10'!L69 -> 0 | U4: =SUM(Q4:T4) ->  | V4: =U4/24 -> 
B5: Class A1 | C5: ='AI-10'!#REF! ->  | D5: ='AI-10'!#REF! ->  | E5: ='AI-10'!#REF! ->  | F5: ='AI-10'!#REF! ->  | G5: ='AI-10'!#REF! ->  | P5: Max | Q5: ='AI-10'!#REF! ->  | R5: =#REF! ->  | S5: ='LDB-10'!L81 -> 0 | T5: ='LDP-10'!L79 -> 0 | U5: =MAX(Q5,R5/4,S5,T5) ->  | V5: =U5/24 -> 
B6: Class A2 | C6: ='AI-10'!#REF! ->  | D6: ='AI-10'!#REF! ->  | E6: ='AI-10'!#REF! ->  | F6: ='AI-10'!#REF! ->  | G6: ='AI-10'!#REF! -> 
B7: Class B | C7: ='AI-10'!#REF! ->  | D7: ='AI-10'!#REF! ->  | E7: ='AI-10'!#REF! ->  | F7: ='AI-10'!#REF! ->  | G7: ='AI-10'!#REF! -> 
B8: Class C | C8: ='AI-10'!#REF! ->  | D8: ='AI-10'!#REF! ->  | E8: ='AI-10'!#REF! ->  | F8: ='AI-10'!#REF! ->  | G8: ='AI-10'!#REF! ->  | P8: =CONCATENATE("Encoder run times for ", M4) -> Encoder run times for test
B9: Class E | C9: ='AI-10'!#REF! ->  | D9: ='AI-10'!#REF! ->  | E9: ='AI-10'!#REF! ->  | F9: ='AI-10'!#REF! ->  | G9: ='AI-10'!#REF! ->  | Q9: AI | R9: RA | S9: LDB | T9: LDP | U9: All [hours] | V9: All [days]
B10: Class Gaming | C10: ='AI-10'!#REF! ->  | D10: ='AI-10'!#REF! ->  | E10: ='AI-10'!#REF! ->  | F10: ='AI-10'!#REF! ->  | G10: ='AI-10'!#REF! ->  | P10: Sum | Q10: ='AI-10'!#REF! ->  | R10: =#REF! ->  | S10: ='LDB-10'!V71 -> 0 | T10: ='LDP-10'!V69 -> 0 | U10: =SUM(Q10:T10) ->  | V10: =U10/24 -> 
B11: Overall | C11: ='AI-10'!#REF! ->  | D11: ='AI-10'!#REF! ->  | E11: ='AI-10'!#REF! ->  | F11: ='AI-10'!#REF! ->  | G11: ='AI-10'!#REF! ->  | L11: Note: BD-rate is computed using piece-wise cubic interpolation | P11: Max | Q11: ='AI-10'!#REF! ->  | R11: =#REF! ->  | S11: ='LDB-10'!V81 -> 0 | T11: ='LDP-10'!V79 -> 0 | U11: =MAX(Q11,R11/4,S11,T11) ->  | V11: =U11/24 -> 
B12: Class D | C12: ='AI-10'!#REF! ->  | D12: ='AI-10'!#REF! ->  | E12: ='AI-10'!#REF! ->  | F12: ='AI-10'!#REF! ->  | G12: ='AI-10'!#REF! -> 
B13: Class F | C13: ='AI-10'!#REF! ->  | D13: ='AI-10'!#REF! ->  | E13: ='AI-10'!#REF! ->  | F13: ='AI-10'!#REF! ->  | G13: ='AI-10'!#REF! -> 
L14: Cluster information
E15: Random access Main10 | P15: =CONCATENATE("Encoder run times for ", M4, " over ", M3) -> Encoder run times for test over HM-16.22 Main10
E16: =CONCATENATE("Over ", $M$3) -> Over HM-16.22 Main10 | L16: CPU type: | M16: (e.g. Xeon …) | Q16: AI | R16: RA | S16: LDB | T16: LDP | U16: All
C17: Y | D17: U | E17: V | F17: EncT | G17: DecT | P17: Average | Q17: =F11 ->  | R17: =F24 ->  | S17: =F39 -> 0% | T17: =F52 -> 
B18: =B5 -> Class A1 | C18: ='RA-10'!#REF! ->  | D18: ='RA-10'!#REF! ->  | E18: ='RA-10'!#REF! ->  | F18: ='RA-10'!#REF! ->  | G18: ='RA-10'!#REF! ->  | L18: Hyperthreading: | M18: (on/off) | P18: Sum | Q18: =Q10/Q4 -> 
B19: =B6 -> Class A2 | C19: ='RA-10'!#REF! ->  | D19: ='RA-10'!#REF! ->  | E19: ='RA-10'!#REF! ->  | F19: ='RA-10'!#REF! ->  | G19: ='RA-10'!#REF! ->  | L19: Turbo mode: | M19: (on/off) | P19: Max
B20: =B7 -> Class B | C20: ='RA-10'!#REF! ->  | D20: ='RA-10'!#REF! ->  | E20: ='RA-10'!#REF! ->  | F20: ='RA-10'!#REF! ->  | G20: ='RA-10'!#REF! -> 
B21: =B8 -> Class C | C21: ='RA-10'!#REF! ->  | D21: ='RA-10'!#REF! ->  | E21: ='RA-10'!#REF! ->  | F21: ='RA-10'!#REF! ->  | G21: ='RA-10'!#REF! ->  | L21: Compiler: | M21: (e.g. gcc 7.3.1)
B22: =B9 -> Class E | C22: ='RA-10'!#REF! ->  | D22: ='RA-10'!#REF! ->  | E22: ='RA-10'!#REF! ->  | F22: ='RA-10'!#REF! ->  | G22: ='RA-10'!#REF! -> 
B23: Class Gaming | C23: ='RA-10'!#REF! ->  | D23: ='RA-10'!#REF! ->  | E23: ='RA-10'!#REF! ->  | F23: ='RA-10'!#REF! ->  | G23: ='RA-10'!#REF! ->  | L23: OS: | M23: (e.g. Scientific Linux)
B24: Overall | C24: ='RA-10'!#REF! ->  | D24: ='RA-10'!#REF! ->  | E24: ='RA-10'!#REF! ->  | F24: ='RA-10'!#REF! ->  | G24: ='RA-10'!#REF! ->  | L24: OS: | M24: (e.g. Scientific Linux)
B25: =B12 -> Class D | C25: ='RA-10'!#REF! ->  | D25: ='RA-10'!#REF! ->  | E25: ='RA-10'!#REF! ->  | F25: ='RA-10'!#REF! ->  | G25: ='RA-10'!#REF! -> 
B26: =B13 -> Class F | C26: ='RA-10'!#REF! ->  | D26: ='RA-10'!#REF! ->  | E26: ='RA-10'!#REF! ->  | F26: ='RA-10'!#REF! ->  | G26: ='RA-10'!#REF! ->  | L26: Decoding options
E28: Low delay B Main10 | L28: Bitstream concatenation: | M28: (yes/no)
E29: =CONCATENATE("Over ", $M$3) -> Over HM-16.22 Main10
C30: Y | D30: U | E30: V | F30: EncT | G30: DecT | H30: BDR-YUV | I30: VMAF | J30: MS-SSIM | L30: MD5 SEI: | M30: (yes/no)
B31: =B5 -> Class A1 | C31: ='LDB-10'!#REF! ->  | D31: ='LDB-10'!#REF! ->  | E31: ='LDB-10'!#REF! ->  | F31: ='LDB-10'!#REF! ->  | G31: ='LDB-10'!#REF! ->  | L31: YUV output: | M31: (yes/no)
B32: =B6 -> Class A2 | C32: ='LDB-10'!#REF! ->  | D32: ='LDB-10'!#REF! ->  | E32: ='LDB-10'!#REF! ->  | F32: ='LDB-10'!#REF! ->  | G32: ='LDB-10'!#REF! -> 
B33: =B7 -> Class B | C33: ='LDB-10'!#REF! ->  | D33: ='LDB-10'!#REF! ->  | E33: ='LDB-10'!#REF! ->  | F33: ='LDB-10'!#REF! ->  | G33: ='LDB-10'!#REF! ->  | L33: SIMD options: | M33: (e.g. SSE2)
B34: =B21 -> Class C | C34: ='LDB-10'!#REF! ->  | D34: ='LDB-10'!#REF! ->  | E34: ='LDB-10'!#REF! ->  | F34: ='LDB-10'!#REF! ->  | G34: ='LDB-10'!#REF! -> 
B35: =B22 -> Class E | C35: ='LDB-10'!#REF! ->  | D35: ='LDB-10'!#REF! ->  | E35: ='LDB-10'!#REF! ->  | F35: ='LDB-10'!#REF! ->  | G35: ='LDB-10'!#REF! -> 
B36: Class Gaming HD | C36: ='LDB-10'!Z55 ->  | D36: ='LDB-10'!AA55 ->  | E36: ='LDB-10'!AB55 ->  | F36: ='LDB-10'!W55 ->  | G36: ='LDB-10'!X55 ->  | H36: ='LDB-10'!AH55 ->  | I36: ='LDB-10'!AI55 ->  | J36: ='LDB-10'!AJ55 -> 
B37: Class Gaming UHD | C37: ='LDB-10'!Z56 ->  | D37: ='LDB-10'!AA56 ->  | E37: ='LDB-10'!AB56 ->  | F37: ='LDB-10'!W56 ->  | G37: ='LDB-10'!X56 ->  | H37: ='LDB-10'!AH56 ->  | I37: ='LDB-10'!AI56 ->  | J37: ='LDB-10'!AJ56 -> 
B38: Class Gaming | C38: ='LDB-10'!Z57 ->  | D38: ='LDB-10'!AA57 ->  | E38: ='LDB-10'!AB57 ->  | F38: ='LDB-10'!W57 ->  | G38: ='LDB-10'!X57 ->  | H38: ='LDB-10'!AH57 ->  | I38: ='LDB-10'!AI57 ->  | J38: ='LDB-10'!AJ57 -> 
B39: Overall | C39: ='LDB-10'!Z58 -> 0.00% | D39: ='LDB-10'!AA58 -> 0.00% | E39: ='LDB-10'!AB58 -> 0.00% | F39: ='LDB-10'!W58 -> 0% | G39: ='LDB-10'!X58 -> 0%
B40: =B12 -> Class D | C40: ='LDB-10'!#REF! ->  | D40: ='LDB-10'!#REF! ->  | E40: ='LDB-10'!#REF! ->  | F40: ='LDB-10'!#REF! ->  | G40: ='LDB-10'!#REF! -> 
B41: =B13 -> Class F | C41: ='LDB-10'!#REF! ->  | D41: ='LDB-10'!#REF! ->  | E41: ='LDB-10'!#REF! ->  | F41: ='LDB-10'!#REF! ->  | G41: ='LDB-10'!#REF! -> 
E43: Low delay P Main10
E44: =CONCATENATE("Over ", $M$3) -> Over HM-16.22 Main10
C45: Y | D45: U | E45: V | F45: EncT | G45: DecT
B46: =B5 -> Class A1
B47: =B6 -> Class A2
B48: =B7 -> Class B | C48: ='LDP-10'!#REF! ->  | D48: ='LDP-10'!#REF! ->  | E48: ='LDP-10'!#REF! ->  | F48: ='LDP-10'!#REF! ->  | G48: ='LDP-10'!#REF! -> 
B49: =B8 -> Class C | C49: ='LDP-10'!#REF! ->  | D49: ='LDP-10'!#REF! ->  | E49: ='LDP-10'!#REF! ->  | F49: ='LDP-10'!#REF! ->  | G49: ='LDP-10'!#REF! -> 
B50: =B9 -> Class E | C50: ='LDP-10'!#REF! ->  | D50: ='LDP-10'!#REF! ->  | E50: ='LDP-10'!#REF! ->  | F50: ='LDP-10'!#REF! ->  | G50: ='LDP-10'!#REF! -> 
B51: Class Gaming | C51: ='LDP-10'!Z55 ->  | D51: ='LDP-10'!AA55 ->  | E51: ='LDP-10'!AB55 ->  | F51: ='LDP-10'!W55 ->  | G51: ='LDP-10'!X55 -> 
B52: Overall | C52: ='LDP-10'!Z56 ->  | D52: ='LDP-10'!AA56 ->  | E52: ='LDP-10'!AB56 ->  | F52: ='LDP-10'!W56 ->  | G52: ='LDP-10'!X56 -> 
B53: =B12 -> Class D | C53: ='LDP-10'!#REF! ->  | D53: ='LDP-10'!#REF! ->  | E53: ='LDP-10'!#REF! ->  | F53: ='LDP-10'!#REF! ->  | G53: ='LDP-10'!#REF! -> 
B54: =B13 -> Class F | C54: ='LDP-10'!#REF! ->  | D54: ='LDP-10'!#REF! ->  | E54: ='LDP-10'!#REF! ->  | F54: ='LDP-10'!#REF! ->  | G54: ='LDP-10'!#REF! -> 

Sheet Plot
A1: Select the coding condition and sequence from the dropbox below | AD1: Line 1 - Reference | AI1: Line 2 - Test
A2: LDB-10 | B2: AOV5_1920x1080_60Hz_8bit_420 | AD2: kbps | AE2: Y psnr | AF2: U psnr | AG2: V psnr | AI2: kbps | AJ2: Y psnr | AK2: U psnr | AL2: V psnr
Z3: AI-10 | AA3: AOV5_1920x1080_60Hz_8bit_420 | AB3: 3 | AC3: =VLOOKUP(B2,AA3:AB43,2,FALSE) -> 3 | AD3: =INDIRECT("'"&$A$2&"'!"&ADDRESS($AC3,4)) -> 14094.4096 | AE3: =INDIRECT("'"&$A$2&"'!"&ADDRESS($AC3,5)) -> 42.0387 | AF3: =INDIRECT("'"&$A$2&"'!"&ADDRESS($AC3,6)) -> 43.7247 | AG3: =INDIRECT("'"&$A$2&"'!"&ADDRESS($AC3,7)) -> 44.4115 | AI3: =INDIRECT("'"&$A$2&"'!"&ADDRESS($AC3,14)) -> 0 | AJ3: =INDIRECT("'"&$A$2&"'!"&ADDRESS($AC3,15)) -> 0 | AK3: =INDIRECT("'"&$A$2&"'!"&ADDRESS($AC3,16)) -> 0 | AL3: =INDIRECT("'"&$A$2&"'!"&ADDRESS($AC3,17)) -> 0
Z4: RA-10 | AA4: baolei_1920x1080_60Hz_8bit_420_01 | AB4: =AB3+4 -> 7 | AC4: =AC3+1 -> 4 | AD4: =INDIRECT("'"&$A$2&"'!"&ADDRESS($AC4,4)) -> 5554.6 | AE4: =INDIRECT("'"&$A$2&"'!"&ADDRESS($AC4,5)) -> 38.4021 | AF4: =INDIRECT("'"&$A$2&"'!"&ADDRESS($AC4,6)) -> 40.7693 | AG4: =INDIRECT("'"&$A$2&"'!"&ADDRESS($AC4,7)) -> 41.2281 | AI4: =INDIRECT("'"&$A$2&"'!"&ADDRESS($AC4,14)) -> 0 | AJ4: =INDIRECT("'"&$A$2&"'!"&ADDRESS($AC4,15)) -> 0 | AK4: =INDIRECT("'"&$A$2&"'!"&ADDRESS($AC4,16)) -> 0 | AL4: =INDIRECT("'"&$A$2&"'!"&ADDRESS($AC4,17)) -> 0
Z5: LDB-10 | AA5: baolei_4096x2160_60Hz_8bit_420_01 | AB5: =AB4+4 -> 11 | AC5: =AC4+1 -> 5 | AD5: =INDIRECT("'"&$A$2&"'!"&ADDRESS($AC5,4)) -> 2521.4528 | AE5: =INDIRECT("'"&$A$2&"'!"&ADDRESS($AC5,5)) -> 35.341 | AF5: =INDIRECT("'"&$A$2&"'!"&ADDRESS($AC5,6)) -> 38.7072 | AG5: =INDIRECT("'"&$A$2&"'!"&ADDRESS($AC5,7)) -> 39.0085 | AI5: 0 | AJ5: 0 | AK5: 0 | AL5: 0
Z6: LDP-10 | AA6: baolei_1920x1080_60Hz_8bit_420_02 | AB6: 15 | AC6: =AC5+1 -> 6 | AD6: =INDIRECT("'"&$A$2&"'!"&ADDRESS($AC6,4)) -> 1254.4936 | AE6: =INDIRECT("'"&$A$2&"'!"&ADDRESS($AC6,5)) -> 32.5997 | AF6: =INDIRECT("'"&$A$2&"'!"&ADDRESS($AC6,6)) -> 36.9808 | AG6: =INDIRECT("'"&$A$2&"'!"&ADDRESS($AC6,7)) -> 37.1178 | AI6: 0 | AJ6: 0 | AK6: 0 | AL6: 0
AA7: baolei_4096x2160_60Hz_8bit_420_02 | AB7: 19
AA8: jianling_1920x1080_60Hz_8bit_420_02 | AB8: 23 | AD8: ="Sequence: "&B2 & " Coding Conditions: " & A2 -> Sequence: AOV5_1920x1080_60Hz_8bit_420 Coding Conditions: LDB-10
AA9: jianling_1920x1080_60Hz_8bit_420_04 | AB9: 27
AA10: HeroesOfTheStorm_1920x1080_30Hz_8bit_P420_Part1 | AB10: 31
AA11: ProjectCars_1920x1080_30Hz_8bit_P420_Part1 | AB11: 35 | AD11: rate | AE11: y | AF11: u | AG11: v
AA12: WoW_1920x1080_30Hz_8bit_P420_Part2 | AB12: 39 | AD12: =MAX(AD3:AD6,AI3:AI6) -> 14094.41 | AE12: =MAX(AE3:AE6,AJ3:AJ6) -> 42.04 | AF12: =MAX(AF3:AF6,AK3:AK6) -> 43.72 | AG12: =MAX(AG3:AG6,AL3:AL6) -> 44.41
AA13: MINECRAFT_1920x1080_60Hz_8bit_P420 | AB13: 43 | AD13: =MIN(AD3:AD6,AI3:AI6) -> 0.00 | AE13: =MIN(AE3:AE6,AJ3:AJ6) -> 0.00 | AF13: =MIN(AF3:AF6,AK3:AK6) -> 0.00 | AG13: =MIN(AG3:AG6,AL3:AL6) -> 0.00
AA14: CSGO_1920x1080_60Hz_8bit_P420 | AB14: 47
AA15: STARCRAFT_1920x1080_60Hz_8bit_P420 | AB15: 51 | AD15: =POWER(10,CEILING(LOG(AD12+1),1)) -> 100000 | AE15: =CEILING(AE12+0.25,0.5) -> 42.5 | AF15: =CEILING(AF12+0.25,0.5) -> 44.0 | AG15: =CEILING(AG12+0.25,0.5) -> 45.0
AD16: =POWER(10,FLOOR(LOG(AD13+10),1)) -> 10 | AE16: =FLOOR(AE13-0.25,0.5) -> -0.5 | AF16: =FLOOR(AF13-0.25,0.5) -> -0.5 | AG16: =FLOOR(AG13-0.25,0.5) -> -0.5

Sheet AI-10
D1: =Summary!M3 -> HM-16.22 Main10 | N1: =Summary!M4 -> test | Z1: BD-rate (piecewise cubic) | AC1: BD-rate (cubic) | AF1: Reference | AG1: Tested | AH1: BD-rate
C2: QPISlice | D2: kbps | E2: Y psnr | F2: U psnr | G2: V psnr | H2: Enc T [s] | I2: Dec T [s] | J2: VMAF | K2: MS SSIM | L2: Enc T [h] | N2: kbps | O2: Y psnr | P2: U psnr | Q2: V psnr | R2: Enc T [s] | S2: Dec T [s] | T2: VMAF | U2: MS SSIM | V2: Enc T [h] | W2: Enc | X2: Dec | Z2: Y | AA2: U | AB2: V | AC2: Y | AD2: U | AE2: V | AF2: Average PSNR | AG2: Average PSNR | AH2: YUV PSNR | AI2: VMAF | AJ2: MS-SSIM
A3: Class Gaming | B3: AOV5_1920x1080_60Hz_8bit_420 | C3: 22 | L3: =H3/3600 -> 0.00 | V3: =R3/3600 -> 0.00 | W3: =R3/H3 ->  | Z3: =bdrate($D3:$D6,E3:E6,$N3:$N6,O3:O6) ->  | AA3: =bdrate($D3:$D6,F3:F6,$N3:$N6,P3:P6) ->  | AB3: =bdrate($D3:$D6,G3:G6,$N3:$N6,Q3:Q6) ->  | AC3: =bdrateOld($D3:$D6,E3:E6,$N3:$N6,O3:O6) ->  | AD3: =bdrateOld($D3:$D6,F3:F6,$N3:$N6,P3:P6) ->  | AE3: =bdrateOld($D3:$D6,G3:G6,$N3:$N6,Q3:Q6) ->  | AF3: =(6*E3+F3+G3)/8 -> 0.00 | AG3: =(6*O3+P3+Q3)/8 -> 0.00 | AH3: =bdrate($D3:$D6,AF3:AF6,$N3:$N6,AG3:AG6) ->  | AI3: =bdrate($D3:$D6,J3:J6,$N3:$N6,T3:T6) -> 
A4: HD Tencent | C4: 27 | L4: 0.00 | V4: 0.00 | AF4: 0.00 | AG4: 0.00
C5: 32 | L5: 0.00 | V5: 0.00 | AF5: 0.00 | AG5: 0.00
C6: 37 | L6: 0.00 | V6: 0.00 | AF6: 0.00 | AG6: 0.00
B7: baolei_1920x1080_60Hz_8bit_420_01 | C7: 22 | L7: 0.00 | V7: 0.00 | Z7: =bdrate($D7:$D10,E7:E10,$N7:$N10,O7:O10) ->  | AA7: =bdrate($D7:$D10,F7:F10,$N7:$N10,P7:P10) ->  | AB7: =bdrate($D7:$D10,G7:G10,$N7:$N10,Q7:Q10) ->  | AC7: =bdrateOld($D7:$D10,E7:E10,$N7:$N10,O7:O10) ->  | AD7: =bdrateOld($D7:$D10,F7:F10,$N7:$N10,P7:P10) ->  | AE7: =bdrateOld($D7:$D10,G7:G10,$N7:$N10,Q7:Q10) ->  | AF7: 0.00 | AG7: 0.00 | AH7: =bdrate($D7:$D10,AF7:AF10,$N7:$N10,AG7:AG10) ->  | AI7: =bdrate($D7:$D10,J7:J10,$N7:$N10,T7:T10) -> 
C8: 27 | L8: 0.00 | V8: 0.00 | AF8: 0.00 | AG8: 0.00
C9: 32 | L9: 0.00 | V9: 0.00 | AF9: 0.00 | AG9: 0.00
C10: 37 | L10: 0.00 | V10: 0.00 | AF10: 0.00 | AG10: 0.00
B11: baolei_4096x2160_60Hz_8bit_420_01 | C11: 22 | L11: =H11/3600 -> 0.00 | V11: =R11/3600 -> 0.00 | Z11: =bdrate($D11:$D14,E11:E14,$N11:$N14,O11:O14) ->  | AA11: =bdrate($D11:$D14,F11:F14,$N11:$N14,P11:P14) ->  | AB11: =bdrate($D11:$D14,G11:G14,$N11:$N14,Q11:Q14) ->  | AC11: =bdrateOld($D11:$D14,E11:E14,$N11:$N14,O11:O14) ->  | AD11: =bdrateOld($D11:$D14,F11:F14,$N11:$N14,P11:P14) ->  | AE11: =bdrateOld($D11:$D14,G11:G14,$N11:$N14,Q11:Q14) ->  | AF11: 0.00 | AG11: 0.00 | AH11: =bdrate($D11:$D14,AF11:AF14,$N11:$N14,AG11:AG14) ->  | AI11: =bdrate($D11:$D14,J11:J14,$N11:$N14,T11:T14) -> 
C12: 27 | L12: =H12/3600 -> 0.00 | V12: =R12/3600 -> 0.00 | AF12: 0.00 | AG12: 0.00
C13: 32 | L13: =H13/3600 -> 0.00 | V13: =R13/3600 -> 0.00 | AF13: 0.00 | AG13: 0.00
C14: 37 | L14: =H14/3600 -> 0.00 | V14: =R14/3600 -> 0.00 | AF14: 0.00 | AG14: 0.00
B15: baolei_1920x1080_60Hz_8bit_420_02 | C15: 22 | L15: 0.00 | V15: 0.00 | Z15: =bdrate($D15:$D18,E15:E18,$N15:$N18,O15:O18) ->  | AA15: =bdrate($D15:$D18,F15:F18,$N15:$N18,P15:P18) ->  | AB15: =bdrate($D15:$D18,G15:G18,$N15:$N18,Q15:Q18) ->  | AC15: =bdrateOld($D15:$D18,E15:E18,$N15:$N18,O15:O18) ->  | AD15: =bdrateOld($D15:$D18,F15:F18,$N15:$N18,P15:P18) ->  | AE15: =bdrateOld($D15:$D18,G15:G18,$N15:$N18,Q15:Q18) ->  | AF15: 0.00 | AG15: 0.00 | AH15: =bdrate($D15:$D18,AF15:AF18,$N15:$N18,AG15:AG18) ->  | AI15: =bdrate($D15:$D18,J15:J18,$N15:$N18,T15:T18) -> 
C16: 27 | L16: 0.00 | V16: 0.00 | AF16: 0.00 | AG16: 0.00
C17: 32 | L17: 0.00 | V17: 0.00 | AF17: 0.00 | AG17: 0.00
C18: 37 | L18: 0.00 | V18: 0.00 | AF18: 0.00 | AG18: 0.00
B19: baolei_4096x2160_60Hz_8bit_420_02 | C19: 22 | L19: =H19/3600 -> 0.00 | V19: =R19/3600 -> 0.00 | Z19: =bdrate($D19:$D22,E19:E22,$N19:$N22,O19:O22) ->  | AA19: =bdrate($D19:$D22,F19:F22,$N19:$N22,P19:P22) ->  | AB19: =bdrate($D19:$D22,G19:G22,$N19:$N22,Q19:Q22) ->  | AC19: =bdrateOld($D19:$D22,E19:E22,$N19:$N22,O19:O22) ->  | AD19: =bdrateOld($D19:$D22,F19:F22,$N19:$N22,P19:P22) ->  | AE19: =bdrateOld($D19:$D22,G19:G22,$N19:$N22,Q19:Q22) ->  | AF19: 0.00 | AG19: 0.00 | AH19: =bdrate($D19:$D22,AF19:AF22,$N19:$N22,AG19:AG22) ->  | AI19: =bdrate($D19:$D22,J19:J22,$N19:$N22,T19:T22) -> 
C20: 27 | L20: =H20/3600 -> 0.00 | V20: =R20/3600 -> 0.00 | AF20: 0.00 | AG20: 0.00
C21: 32 | L21: =H21/3600 -> 0.00 | V21: =R21/3600 -> 0.00 | AF21: 0.00 | AG21: 0.00
C22: 37 | L22: =H22/3600 -> 0.00 | V22: =R22/3600 -> 0.00 | AF22: 0.00 | AG22: 0.00
B23: jianling_1920x1080_60Hz_8bit_420_02 | C23: 22 | L23: 0.00 | V23: 0.00 | Z23: =bdrate($D23:$D26,E23:E26,$N23:$N26,O23:O26) ->  | AA23: =bdrate($D23:$D26,F23:F26,$N23:$N26,P23:P26) ->  | AB23: =bdrate($D23:$D26,G23:G26,$N23:$N26,Q23:Q26) ->  | AC23: =bdrateOld($D23:$D26,E23:E26,$N23:$N26,O23:O26) ->  | AD23: =bdrateOld($D23:$D26,F23:F26,$N23:$N26,P23:P26) ->  | AE23: =bdrateOld($D23:$D26,G23:G26,$N23:$N26,Q23:Q26) ->  | AF23: 0.00 | AG23: 0.00 | AH23: =bdrate($D23:$D26,AF23:AF26,$N23:$N26,AG23:AG26) ->  | AI23: =bdrate($D23:$D26,J23:J26,$N23:$N26,T23:T26) ->  | AJ23: =bdrate($D23:$D26,K23:K26,$N23:$N26,U23:U26) -> 
C24: 27 | L24: 0.00 | V24: 0.00 | AF24: 0.00 | AG24: 0.00
C25: 32 | L25: 0.00 | V25: 0.00 | AF25: 0.00 | AG25: 0.00
C26: 37 | L26: 0.00 | V26: 0.00 | AF26: 0.00 | AG26: 0.00
B27: jianling_1920x1080_60Hz_8bit_420_04 | C27: 22 | L27: 0.00 | V27: 0.00 | Z27: =bdrate($D27:$D30,E27:E30,$N27:$N30,O27:O30) ->  | AA27: =bdrate($D27:$D30,F27:F30,$N27:$N30,P27:P30) ->  | AB27: =bdrate($D27:$D30,G27:G30,$N27:$N30,Q27:Q30) ->  | AC27: =bdrateOld($D27:$D30,E27:E30,$N27:$N30,O27:O30) ->  | AD27: =bdrateOld($D27:$D30,F27:F30,$N27:$N30,P27:P30) ->  | AE27: =bdrateOld($D27:$D30,G27:G30,$N27:$N30,Q27:Q30) ->  | AF27: 0.00 | AG27: 0.00 | AH27: =bdrate($D27:$D30,AF27:AF30,$N27:$N30,AG27:AG30) ->  | AI27: =bdrate($D27:$D30,J27:J30,$N27:$N30,T27:T30) -> 
C28: 27 | L28: 0.00 | V28: 0.00 | AF28: 0.00 | AG28: 0.00
C29: 32 | L29: 0.00 | V29: 0.00 | AF29: 0.00 | AG29: 0.00
C30: 37 | L30: 0.00 | V30: 0.00 | AF30: 0.00 | AG30: 0.00
A31: Class Gaming | B31: HeroesOfTheStorm_1920x1080_30Hz_8bit_P420_Part1 | C31: 22 | L31: 0.00 | V31: 0.00 | Z31: =bdrate($D31:$D34,E31:E34,$N31:$N34,O31:O34) ->  | AA31: =bdrate($D31:$D34,F31:F34,$N31:$N34,P31:P34) ->  | AB31: =bdrate($D31:$D34,G31:G34,$N31:$N34,Q31:Q34) ->  | AC31: =bdrateOld($D31:$D34,E31:E34,$N31:$N34,O31:O34) ->  | AD31: =bdrateOld($D31:$D34,F31:F34,$N31:$N34,P31:P34) ->  | AE31: =bdrateOld($D31:$D34,G31:G34,$N31:$N34,Q31:Q34) ->  | AF31: 0.00 | AG31: 0.00 | AH31: =bdrate($D31:$D34,AF31:AF34,$N31:$N34,AG31:AG34) ->  | AI31: =bdrate($D31:$D34,J31:J34,$N31:$N34,T31:T34) -> 
A32: HD | C32: 27 | L32: 0.00 | V32: 0.00 | AF32: 0.00 | AG32: 0.00
A33: Kingston | C33: 32 | L33: 0.00 | V33: 0.00 | AF33: 0.00 | AG33: 0.00
A34: University | C34: 37 | L34: 0.00 | V34: 0.00 | AF34: 0.00 | AG34: 0.00
B35: ProjectCars_1920x1080_30Hz_8bit_P420_Part1 | C35: 22 | L35: 0.00 | V35: 0.00 | W35: =R35/H35 ->  | Z35: =bdrate($D35:$D38,E35:E38,$N35:$N38,O35:O38) ->  | AA35: =bdrate($D35:$D38,F35:F38,$N35:$N38,P35:P38) ->  | AB35: =bdrate($D35:$D38,G35:G38,$N35:$N38,Q35:Q38) ->  | AC35: =bdrateOld($D35:$D38,E35:E38,$N35:$N38,O35:O38) ->  | AD35: =bdrateOld($D35:$D38,F35:F38,$N35:$N38,P35:P38) ->  | AE35: =bdrateOld($D35:$D38,G35:G38,$N35:$N38,Q35:Q38) ->  | AF35: 0.00 | AG35: 0.00 | AH35: =bdrate($D35:$D38,AF35:AF38,$N35:$N38,AG35:AG38) ->  | AI35: =bdrate($D35:$D38,J35:J38,$N35:$N38,T35:T38) -> 
C36: 27 | L36: 0.00 | V36: 0.00 | AF36: 0.00 | AG36: 0.00
C37: 32 | L37: 0.00 | V37: 0.00 | AF37: 0.00 | AG37: 0.00
C38: 37 | L38: 0.00 | V38: 0.00 | AF38: 0.00 | AG38: 0.00
B39: WoW_1920x1080_30Hz_8bit_P420_Part2 | C39: 22 | L39: 0.00 | V39: 0.00 | Z39: =bdrate($D39:$D42,E39:E42,$N39:$N42,O39:O42) ->  | AA39: =bdrate($D39:$D42,F39:F42,$N39:$N42,P39:P42) ->  | AB39: =bdrate($D39:$D42,G39:G42,$N39:$N42,Q39:Q42) ->  | AC39: =bdrateOld($D39:$D42,E39:E42,$N39:$N42,O39:O42) ->  | AD39: =bdrateOld($D39:$D42,F39:F42,$N39:$N42,P39:P42) ->  | AE39: =bdrateOld($D39:$D42,G39:G42,$N39:$N42,Q39:Q42) ->  | AF39: 0.00 | AG39: 0.00 | AH39: =bdrate($D39:$D42,AF39:AF42,$N39:$N42,AG39:AG42) ->  | AI39: =bdrate($D39:$D42,J39:J42,$N39:$N42,T39:T42) -> 
C40: 27 | L40: 0.00 | V40: 0.00 | AF40: 0.00 | AG40: 0.00
C41: 32 | L41: 0.00 | V41: 0.00 | AF41: 0.00 | AG41: 0.00
C42: 37 | L42: 0.00 | V42: 0.00 | AF42: 0.00 | AG42: 0.00
A43: Class Gaming | B43: MINECRAFT_1920x1080_60Hz_8bit_P420 | C43: 22 | L43: 0.00 | V43: 0.00 | Z43: =bdrate($D43:$D46,E43:E46,$N43:$N46,O43:O46) ->  | AA43: =bdrate($D43:$D46,F43:F46,$N43:$N46,P43:P46) ->  | AB43: =bdrate($D43:$D46,G43:G46,$N43:$N46,Q43:Q46) ->  | AC43: =bdrateOld($D43:$D46,E43:E46,$N43:$N46,O43:O46) ->  | AD43: =bdrateOld($D43:$D46,F43:F46,$N43:$N46,P43:P46) ->  | AE43: =bdrateOld($D43:$D46,G43:G46,$N43:$N46,Q43:Q46) ->  | AF43: 0.00 | AG43: 0.00 | AH43: =bdrate($D43:$D46,AF43:AF46,$N43:$N46,AG43:AG46) ->  | AI43: =bdrate($D43:$D46,J43:J46,$N43:$N46,T43:T46) -> 
A44: HD | C44: 27 | L44: 0.00 | V44: 0.00 | AF44: 0.00 | AG44: 0.00
A45: DERF_TWITCH | C45: 32 | L45: 0.00 | V45: 0.00 | AF45: 0.00 | AG45: 0.00
C46: 37 | L46: 0.00 | V46: 0.00 | AF46: 0.00 | AG46: 0.00
B47: CSGO_1920x1080_60Hz_8bit_P420 | C47: 22 | L47: 0.00 | V47: 0.00 | Z47: =bdrate($D47:$D50,E47:E50,$N47:$N50,O47:O50) ->  | AA47: =bdrate($D47:$D50,F47:F50,$N47:$N50,P47:P50) ->  | AB47: =bdrate($D47:$D50,G47:G50,$N47:$N50,Q47:Q50) ->  | AC47: =bdrateOld($D47:$D50,E47:E50,$N47:$N50,O47:O50) ->  | AD47: =bdrateOld($D47:$D50,F47:F50,$N47:$N50,P47:P50) ->  | AE47: =bdrateOld($D47:$D50,G47:G50,$N47:$N50,Q47:Q50) ->  | AF47: 0.00 | AG47: 0.00 | AH47: =bdrate($D47:$D50,AF47:AF50,$N47:$N50,AG47:AG50) ->  | AI47: =bdrate($D47:$D50,J47:J50,$N47:$N50,T47:T50) -> 
C48: 27 | L48: 0.00 | V48: 0.00 | AF48: 0.00 | AG48: 0.00
C49: 32 | L49: 0.00 | V49: 0.00 | AF49: 0.00 | AG49: 0.00
C50: 37 | L50: 0.00 | V50: 0.00 | AF50: 0.00 | AG50: 0.00
B51: STARCRAFT_1920x1080_60Hz_8bit_P420 | C51: 22 | L51: 0.00 | V51: 0.00 | Z51: =bdrate($D51:$D54,E51:E54,$N51:$N54,O51:O54) ->  | AA51: =bdrate($D51:$D54,F51:F54,$N51:$N54,P51:P54) ->  | AB51: =bdrate($D51:$D54,G51:G54,$N51:$N54,Q51:Q54) ->  | AC51: =bdrateOld($D51:$D54,E51:E54,$N51:$N54,O51:O54) ->  | AD51: =bdrateOld($D51:$D54,F51:F54,$N51:$N54,P51:P54) ->  | AE51: =bdrateOld($D51:$D54,G51:G54,$N51:$N54,Q51:Q54) ->  | AF51: 0.00 | AG51: 0.00 | AH51: =bdrate($D51:$D54,AF51:AF54,$N51:$N54,AG51:AG54) ->  | AI51: =bdrate($D51:$D54,J51:J54,$N51:$N54,T51:T54) -> 
C52: 27 | L52: 0.00 | V52: 0.00 | AF52: 0.00 | AG52: 0.00
C53: 32 | L53: 0.00 | V53: 0.00 | AF53: 0.00 | AG53: 0.00
C54: 37 | L54: 0.00 | V54: 0.00 | AF54: 0.00 | AG54: 0.00
B55: Class Gaming HD | I55: =GEOMEAN(I3:I10,I15,I23:I54) ->  | J55: =GEOMEAN(J3:J10,J15,J23:J54) ->  | S55: =GEOMEAN(S3:S10,S15,S23:S54) ->  | T55: =GEOMEAN(T3:T10,T15,T23:T54) ->  | Z55: =AVERAGE(Z3:Z10,Z15,Z23:Z54) ->  | AA55: =AVERAGE(AA3:AA10,AA15,AA23:AA54) ->  | AC55: =AVERAGE(AC3:AC10,AC15,AC23:AC54) ->  | AD55: =AVERAGE(AD3:AD10,AD15,AD23:AD54) ->  | AH55: =AVERAGE(AH3:AH10,AH15,AH23:AH54) ->  | AI55: =AVERAGE(AI3:AI10,AI15,AI23:AI54) -> 
B56: Class Gaming UHD | I56: =GEOMEAN(I11:I14,I19:I22) ->  | J56: =GEOMEAN(J11:J14,J19:J22) ->  | S56: =GEOMEAN(S11:S14,S19:S22) ->  | T56: =GEOMEAN(T11:T14,T19:T22) ->  | Z56: =AVERAGE(Z11,Z19) ->  | AA56: =AVERAGE(AA11,AA19) ->  | AB56: =AVERAGE(AB11,AB19) ->  | AC56: =AVERAGE(AC11,AC19) ->  | AD56: =AVERAGE(AD11,AD19) ->  | AE56: =AVERAGE(AE11,AE19) ->  | AH56: =AVERAGE(AH11,AH19) ->  | AI56: =AVERAGE(AI11,AI19) ->  | AJ56: =AVERAGE(AJ11,AJ19) -> 
B57: Class Gaming | I57: =GEOMEAN(I3:I54) ->  | L57: =GEOMEAN(L3:L54) ->  | S57: =GEOMEAN(S3:S54) ->  | V57: =GEOMEAN(V3:V54) ->  | W57: =GEOMEAN(W3:W54) ->  | X57: =GEOMEAN(X3:X54) ->  | Z57: =AVERAGE(Z3:Z54) ->  | AH57: =AVERAGE(AH3:AH54) ->  | AI57: =AVERAGE(AI3:AI54) ->  | AJ57: =AVERAGE(AJ3:AJ54) -> 
B58: All

Sheet RA-10
D1: =Summary!M3 -> HM-16.22 Main10 | N1: =Summary!M4 -> test | Z1: BD-rate (piecewise cubic) | AC1: BD-rate (cubic) | AF1: Reference | AG1: Tested | AH1: BD-rate
C2: QPISlice | D2: kbps | E2: Y psnr | F2: U psnr | G2: V psnr | H2: Enc T [s] | I2: Dec T [s] | J2: VMAF | K2: MS SSIM | L2: Enc T [h] | N2: kbps | O2: Y psnr | P2: U psnr | Q2: V psnr | R2: Enc T [s] | S2: Dec T [s] | T2: VMAF | U2: MS SSIM | V2: Enc T [h] | W2: Enc | X2: Dec | Z2: Y | AA2: U | AB2: V | AC2: Y | AD2: U | AE2: V | AF2: Average PSNR | AG2: Average PSNR | AH2: YUV PSNR | AI2: VMAF | AJ2: MS-SSIM
A3: Class Gaming | B3: AOV5_1920x1080_60Hz_8bit_420 | C3: 22 | L3: =H3/3600 -> 0.00 | V3: =R3/3600 -> 0.00 | W3: =R3/H3 ->  | Z3: =bdrate($D3:$D6,E3:E6,$N3:$N6,O3:O6) ->  | AA3: =bdrate($D3:$D6,F3:F6,$N3:$N6,P3:P6) ->  | AB3: =bdrate($D3:$D6,G3:G6,$N3:$N6,Q3:Q6) ->  | AC3: =bdrateOld($D3:$D6,E3:E6,$N3:$N6,O3:O6) ->  | AD3: =bdrateOld($D3:$D6,F3:F6,$N3:$N6,P3:P6) ->  | AE3: =bdrateOld($D3:$D6,G3:G6,$N3:$N6,Q3:Q6) ->  | AF3: =(6*E3+F3+G3)/8 -> 0.00 | AG3: =(6*O3+P3+Q3)/8 -> 0.00 | AH3: =bdrate($D3:$D6,AF3:AF6,$N3:$N6,AG3:AG6) ->  | AI3: =bdrate($D3:$D6,J3:J6,$N3:$N6,T3:T6) -> 
A4: HD Tencent | C4: 27 | L4: 0.00 | V4: 0.00 | AF4: 0.00 | AG4: 0.00
C5: 32 | L5: 0.00 | V5: 0.00 | AF5: 0.00 | AG5: 0.00
C6: 37 | L6: 0.00 | V6: 0.00 | AF6: 0.00 | AG6: 0.00
B7: baolei_1920x1080_60Hz_8bit_420_01 | C7: 22 | L7: 0.00 | V7: 0.00 | Z7: =bdrate($D7:$D10,E7:E10,$N7:$N10,O7:O10) ->  | AA7: =bdrate($D7:$D10,F7:F10,$N7:$N10,P7:P10) ->  | AB7: =bdrate($D7:$D10,G7:G10,$N7:$N10,Q7:Q10) ->  | AC7: =bdrateOld($D7:$D10,E7:E10,$N7:$N10,O7:O10) ->  | AD7: =bdrateOld($D7:$D10,F7:F10,$N7:$N10,P7:P10) ->  | AE7: =bdrateOld($D7:$D10,G7:G10,$N7:$N10,Q7:Q10) ->  | AF7: 0.00 | AG7: 0.00 | AH7: =bdrate($D7:$D10,AF7:AF10,$N7:$N10,AG7:AG10) ->  | AI7: =bdrate($D7:$D10,J7:J10,$N7:$N10,T7:T10) -> 
C8: 27 | L8: 0.00 | V8: 0.00 | AF8: 0.00 | AG8: 0.00
C9: 32 | L9: 0.00 | V9: 0.00 | AF9: 0.00 | AG9: 0.00
C10: 37 | L10: 0.00 | V10: 0.00 | AF10: 0.00 | AG10: 0.00
B11: baolei_4096x2160_60Hz_8bit_420_01 | C11: 22 | L11: =H11/3600 -> 0.00 | V11: =R11/3600 -> 0.00 | Z11: =bdrate($D11:$D14,E11:E14,$N11:$N14,O11:O14) ->  | AA11: =bdrate($D11:$D14,F11:F14,$N11:$N14,P11:P14) ->  | AB11: =bdrate($D11:$D14,G11:G14,$N11:$N14,Q11:Q14) ->  | AC11: =bdrateOld($D11:$D14,E11:E14,$N11:$N14,O11:O14) ->  | AD11: =bdrateOld($D11:$D14,F11:F14,$N11:$N14,P11:P14) ->  | AE11: =bdrateOld($D11:$D14,G11:G14,$N11:$N14,Q11:Q14) ->  | AF11: 0.00 | AG11: 0.00 | AH11: =bdrate($D11:$D14,AF11:AF14,$N11:$N14,AG11:AG14) ->  | AI11: =bdrate($D11:$D14,J11:J14,$N11:$N14,T11:T14) -> 
C12: 27 | L12: =H12/3600 -> 0.00 | V12: =R12/3600 -> 0.00 | AF12: 0.00 | AG12: 0.00
C13: 32 | L13: =H13/3600 -> 0.00 | V13: =R13/3600 -> 0.00 | AF13: 0.00 | AG13: 0.00
C14: 37 | L14: =H14/3600 -> 0.00 | V14: =R14/3600 -> 0.00 | AF14: 0.00 | AG14: 0.00
B15: baolei_1920x1080_60Hz_8bit_420_02 | C15: 22 | L15: 0.00 | V15: 0.00 | Z15: =bdrate($D15:$D18,E15:E18,$N15:$N18,O15:O18) ->  | AA15: =bdrate($D15:$D18,F15:F18,$N15:$N18,P15:P18) ->  | AB15: =bdrate($D15:$D18,G15:G18,$N15:$N18,Q15:Q18) ->  | AC15: =bdrateOld($D15:$D18,E15:E18,$N15:$N18,O15:O18) ->  | AD15: =bdrateOld($D15:$D18,F15:F18,$N15:$N18,P15:P18) ->  | AE15: =bdrateOld($D15:$D18,G15:G18,$N15:$N18,Q15:Q18) ->  | AF15: 0.00 | AG15: 0.00 | AH15: =bdrate($D15:$D18,AF15:AF18,$N15:$N18,AG15:AG18) ->  | AI15: =bdrate($D15:$D18,J15:J18,$N15:$N18,T15:T18) -> 
C16: 27 | L16: 0.00 | V16: 0.00 | AF16: 0.00 | AG16: 0.00
C17: 32 | L17: 0.00 | V17: 0.00 | AF17: 0.00 | AG17: 0.00
C18: 37 | L18: 0.00 | V18: 0.00 | AF18: 0.00 | AG18: 0.00
B19: baolei_4096x2160_60Hz_8bit_420_02 | C19: 22 | L19: =H19/3600 -> 0.00 | V19: =R19/3600 -> 0.00 | Z19: =bdrate($D19:$D22,E19:E22,$N19:$N22,O19:O22) ->  | AA19: =bdrate($D19:$D22,F19:F22,$N19:$N22,P19:P22) ->  | AB19: =bdrate($D19:$D22,G19:G22,$N19:$N22,Q19:Q22) ->  | AC19: =bdrateOld($D19:$D22,E19:E22,$N19:$N22,O19:O22) ->  | AD19: =bdrateOld($D19:$D22,F19:F22,$N19:$N22,P19:P22) ->  | AE19: =bdrateOld($D19:$D22,G19:G22,$N19:$N22,Q19:Q22) ->  | AF19: 0.00 | AG19: 0.00 | AH19: =bdrate($D19:$D22,AF19:AF22,$N19:$N22,AG19:AG22) ->  | AI19: =bdrate($D19:$D22,J19:J22,$N19:$N22,T19:T22) -> 
C20: 27 | L20: =H20/3600 -> 0.00 | V20: =R20/3600 -> 0.00 | AF20: 0.00 | AG20: 0.00
C21: 32 | L21: =H21/3600 -> 0.00 | V21: =R21/3600 -> 0.00 | AF21: 0.00 | AG21: 0.00
C22: 37 | L22: =H22/3600 -> 0.00 | V22: =R22/3600 -> 0.00 | AF22: 0.00 | AG22: 0.00
B23: jianling_1920x1080_60Hz_8bit_420_02 | C23: 22 | L23: 0.00 | V23: 0.00 | Z23: =bdrate($D23:$D26,E23:E26,$N23:$N26,O23:O26) ->  | AA23: =bdrate($D23:$D26,F23:F26,$N23:$N26,P23:P26) ->  | AB23: =bdrate($D23:$D26,G23:G26,$N23:$N26,Q23:Q26) ->  | AC23: =bdrateOld($D23:$D26,E23:E26,$N23:$N26,O23:O26) ->  | AD23: =bdrateOld($D23:$D26,F23:F26,$N23:$N26,P23:P26) ->  | AE23: =bdrateOld($D23:$D26,G23:G26,$N23:$N26,Q23:Q26) ->  | AF23: 0.00 | AG23: 0.00 | AH23: =bdrate($D23:$D26,AF23:AF26,$N23:$N26,AG23:AG26) ->  | AI23: =bdrate($D23:$D26,J23:J26,$N23:$N26,T23:T26) ->  | AJ23: =bdrate($D23:$D26,K23:K26,$N23:$N26,U23:U26) -> 
C24: 27 | L24: 0.00 | V24: 0.00 | AF24: 0.00 | AG24: 0.00
C25: 32 | L25: 0.00 | V25: 0.00 | AF25: 0.00 | AG25: 0.00
C26: 37 | L26: 0.00 | V26: 0.00 | AF26: 0.00 | AG26: 0.00
B27: jianling_1920x1080_60Hz_8bit_420_04 | C27: 22 | L27: 0.00 | V27: 0.00 | Z27: =bdrate($D27:$D30,E27:E30,$N27:$N30,O27:O30) ->  | AA27: =bdrate($D27:$D30,F27:F30,$N27:$N30,P27:P30) ->  | AB27: =bdrate($D27:$D30,G27:G30,$N27:$N30,Q27:Q30) ->  | AC27: =bdrateOld($D27:$D30,E27:E30,$N27:$N30,O27:O30) ->  | AD27: =bdrateOld($D27:$D30,F27:F30,$N27:$N30,P27:P30) ->  | AE27: =bdrateOld($D27:$D30,G27:G30,$N27:$N30,Q27:Q30) ->  | AF27: 0.00 | AG27: 0.00 | AH27: =bdrate($D27:$D30,AF27:AF30,$N27:$N30,AG27:AG30) ->  | AI27: =bdrate($D27:$D30,J27:J30,$N27:$N30,T27:T30) -> 
C28: 27 | L28: 0.00 | V28: 0.00 | AF28: 0.00 | AG28: 0.00
C29: 32 | L29: 0.00 | V29: 0.00 | AF29: 0.00 | AG29: 0.00
C30: 37 | L30: 0.00 | V30: 0.00 | AF30: 0.00 | AG30: 0.00
A31: Class Gaming | B31: HeroesOfTheStorm_1920x1080_30Hz_8bit_P420_Part1 | C31: 22 | L31: 0.00 | V31: 0.00 | Z31: =bdrate($D31:$D34,E31:E34,$N31:$N34,O31:O34) ->  | AA31: =bdrate($D31:$D34,F31:F34,$N31:$N34,P31:P34) ->  | AB31: =bdrate($D31:$D34,G31:G34,$N31:$N34,Q31:Q34) ->  | AC31: =bdrateOld($D31:$D34,E31:E34,$N31:$N34,O31:O34) ->  | AD31: =bdrateOld($D31:$D34,F31:F34,$N31:$N34,P31:P34) ->  | AE31: =bdrateOld($D31:$D34,G31:G34,$N31:$N34,Q31:Q34) ->  | AF31: 0.00 | AG31: 0.00 | AH31: =bdrate($D31:$D34,AF31:AF34,$N31:$N34,AG31:AG34) ->  | AI31: =bdrate($D31:$D34,J31:J34,$N31:$N34,T31:T34) -> 
A32: HD | C32: 27 | L32: 0.00 | V32: 0.00 | AF32: 0.00 | AG32: 0.00
A33: Kingston | C33: 32 | L33: 0.00 | V33: 0.00 | AF33: 0.00 | AG33: 0.00
A34: University | C34: 37 | L34: 0.00 | V34: 0.00 | AF34: 0.00 | AG34: 0.00
B35: ProjectCars_1920x1080_30Hz_8bit_P420_Part1 | C35: 22 | L35: 0.00 | V35: 0.00 | W35: =R35/H35 ->  | Z35: =bdrate($D35:$D38,E35:E38,$N35:$N38,O35:O38) ->  | AA35: =bdrate($D35:$D38,F35:F38,$N35:$N38,P35:P38) ->  | AB35: =bdrate($D35:$D38,G35:G38,$N35:$N38,Q35:Q38) ->  | AC35: =bdrateOld($D35:$D38,E35:E38,$N35:$N38,O35:O38) ->  | AD35: =bdrateOld($D35:$D38,F35:F38,$N35:$N38,P35:P38) ->  | AE35: =bdrateOld($D35:$D38,G35:G38,$N35:$N38,Q35:Q38) ->  | AF35: 0.00 | AG35: 0.00 | AH35: =bdrate($D35:$D38,AF35:AF38,$N35:$N38,AG35:AG38) ->  | AI35: =bdrate($D35:$D38,J35:J38,$N35:$N38,T35:T38) -> 
C36: 27 | L36: 0.00 | V36: 0.00 | AF36: 0.00 | AG36: 0.00
C37: 32 | L37: 0.00 | V37: 0.00 | AF37: 0.00 | AG37: 0.00
C38: 37 | L38: 0.00 | V38: 0.00 | AF38: 0.00 | AG38: 0.00
B39: WoW_1920x1080_30Hz_8bit_P420_Part2 | C39: 22 | L39: 0.00 | V39: 0.00 | Z39: =bdrate($D39:$D42,E39:E42,$N39:$N42,O39:O42) ->  | AA39: =bdrate($D39:$D42,F39:F42,$N39:$N42,P39:P42) ->  | AB39: =bdrate($D39:$D42,G39:G42,$N39:$N42,Q39:Q42) ->  | AC39: =bdrateOld($D39:$D42,E39:E42,$N39:$N42,O39:O42) ->  | AD39: =bdrateOld($D39:$D42,F39:F42,$N39:$N42,P39:P42) ->  | AE39: =bdrateOld($D39:$D42,G39:G42,$N39:$N42,Q39:Q42) ->  | AF39: 0.00 | AG39: 0.00 | AH39: =bdrate($D39:$D42,AF39:AF42,$N39:$N42,AG39:AG42) ->  | AI39: =bdrate($D39:$D42,J39:J42,$N39:$N42,T39:T42) -> 
C40: 27 | L40: 0.00 | V40: 0.00 | AF40: 0.00 | AG40: 0.00
C41: 32 | L41: 0.00 | V41: 0.00 | AF41: 0.00 | AG41: 0.00
C42: 37 | L42: 0.00 | V42: 0.00 | AF42: 0.00 | AG42: 0.00
A43: Class Gaming | B43: MINECRAFT_1920x1080_60Hz_8bit_P420 | C43: 22 | L43: 0.00 | V43: 0.00 | Z43: =bdrate($D43:$D46,E43:E46,$N43:$N46,O43:O46) ->  | AA43: =bdrate($D43:$D46,F43:F46,$N43:$N46,P43:P46) ->  | AB43: =bdrate($D43:$D46,G43:G46,$N43:$N46,Q43:Q46) ->  | AC43: =bdrateOld($D43:$D46,E43:E46,$N43:$N46,O43:O46) ->  | AD43: =bdrateOld($D43:$D46,F43:F46,$N43:$N46,P43:P46) ->  | AE43: =bdrateOld($D43:$D46,G43:G46,$N43:$N46,Q43:Q46) ->  | AF43: 0.00 | AG43: 0.00 | AH43: =bdrate($D43:$D46,AF43:AF46,$N43:$N46,AG43:AG46) ->  | AI43: =bdrate($D43:$D46,J43:J46,$N43:$N46,T43:T46) -> 
A44: HD | C44: 27 | L44: 0.00 | V44: 0.00 | AF44: 0.00 | AG44: 0.00
A45: DERF_TWITCH | C45: 32 | L45: 0.00 | V45: 0.00 | AF45: 0.00 | AG45: 0.00
C46: 37 | L46: 0.00 | V46: 0.00 | AF46: 0.00 | AG46: 0.00
B47: CSGO_1920x1080_60Hz_8bit_P420 | C47: 22 | L47: 0.00 | V47: 0.00 | Z47: =bdrate($D47:$D50,E47:E50,$N47:$N50,O47:O50) ->  | AA47: =bdrate($D47:$D50,F47:F50,$N47:$N50,P47:P50) ->  | AB47: =bdrate($D47:$D50,G47:G50,$N47:$N50,Q47:Q50) ->  | AC47: =bdrateOld($D47:$D50,E47:E50,$N47:$N50,O47:O50) ->  | AD47: =bdrateOld($D47:$D50,F47:F50,$N47:$N50,P47:P50) ->  | AE47: =bdrateOld($D47:$D50,G47:G50,$N47:$N50,Q47:Q50) ->  | AF47: 0.00 | AG47: 0.00 | AH47: =bdrate($D47:$D50,AF47:AF50,$N47:$N50,AG47:AG50) ->  | AI47: =bdrate($D47:$D50,J47:J50,$N47:$N50,T47:T50) -> 
C48: 27 | L48: 0.00 | V48: 0.00 | AF48: 0.00 | AG48: 0.00
C49: 32 | L49: 0.00 | V49: 0.00 | AF49: 0.00 | AG49: 0.00
C50: 37 | L50: 0.00 | V50: 0.00 | AF50: 0.00 | AG50: 0.00
B51: STARCRAFT_1920x1080_60Hz_8bit_P420 | C51: 22 | L51: 0.00 | V51: 0.00 | Z51: =bdrate($D51:$D54,E51:E54,$N51:$N54,O51:O54) ->  | AA51: =bdrate($D51:$D54,F51:F54,$N51:$N54,P51:P54) ->  | AB51: =bdrate($D51:$D54,G51:G54,$N51:$N54,Q51:Q54) ->  | AC51: =bdrateOld($D51:$D54,E51:E54,$N51:$N54,O51:O54) ->  | AD51: =bdrateOld($D51:$D54,F51:F54,$N51:$N54,P51:P54) ->  | AE51: =bdrateOld($D51:$D54,G51:G54,$N51:$N54,Q51:Q54) ->  | AF51: 0.00 | AG51: 0.00 | AH51: =bdrate($D51:$D54,AF51:AF54,$N51:$N54,AG51:AG54) ->  | AI51: =bdrate($D51:$D54,J51:J54,$N51:$N54,T51:T54) -> 
C52: 27 | L52: 0.00 | V52: 0.00 | AF52: 0.00 | AG52: 0.00
C53: 32 | L53: 0.00 | V53: 0.00 | AF53: 0.00 | AG53: 0.00
C54: 37 | L54: 0.00 | V54: 0.00 | AF54: 0.00 | AG54: 0.00
B55: Class Gaming HD | I55: =GEOMEAN(I3:I10,I15,I23:I54) ->  | J55: =GEOMEAN(J3:J10,J15,J23:J54) ->  | S55: =GEOMEAN(S3:S10,S15,S23:S54) ->  | T55: =GEOMEAN(T3:T10,T15,T23:T54) ->  | Z55: =AVERAGE(Z3:Z10,Z15,Z23:Z54) ->  | AA55: =AVERAGE(AA3:AA10,AA15,AA23:AA54) ->  | AC55: =AVERAGE(AC3:AC10,AC15,AC23:AC54) ->  | AD55: =AVERAGE(AD3:AD10,AD15,AD23:AD54) ->  | AH55: =AVERAGE(AH3:AH10,AH15,AH23:AH54) ->  | AI55: =AVERAGE(AI3:AI10,AI15,AI23:AI54) -> 
B56: Class Gaming UHD | I56: =GEOMEAN(I11:I14,I19:I22) ->  | J56: =GEOMEAN(J11:J14,J19:J22) ->  | S56: =GEOMEAN(S11:S14,S19:S22) ->  | T56: =GEOMEAN(T11:T14,T19:T22) ->  | Z56: =AVERAGE(Z11,Z19) ->  | AA56: =AVERAGE(AA11,AA19) ->  | AB56: =AVERAGE(AB11,AB19) ->  | AC56: =AVERAGE(AC11,AC19) ->  | AD56: =AVERAGE(AD11,AD19) ->  | AE56: =AVERAGE(AE11,AE19) ->  | AH56: =AVERAGE(AH11,AH19) ->  | AI56: =AVERAGE(AI11,AI19) ->  | AJ56: =AVERAGE(AJ11,AJ19) -> 
B57: Class Gaming | I57: =GEOMEAN(I3:I54) ->  | L57: =GEOMEAN(L3:L54) ->  | S57: =GEOMEAN(S3:S54) ->  | V57: =GEOMEAN(V3:V54) ->  | W57: =GEOMEAN(W3:W54) ->  | X57: =GEOMEAN(X3:X54) ->  | Z57: =AVERAGE(Z3:Z54) ->  | AH57: =AVERAGE(AH3:AH54) ->  | AI57: =AVERAGE(AI3:AI54) ->  | AJ57: =AVERAGE(AJ3:AJ54) -> 
B58: All

Sheet LDB-10
D1: =Summary!M3 -> HM-16.22 Main10 | N1: =Summary!M4 -> test | Z1: BD-rate (piecewise cubic) | AC1: BD-rate (cubic) | AF1: Reference | AG1: Tested | AH1: BD-rate
A2: sequence type | B2: sequence | C2: QPISlice | D2: kbps | E2: Y psnr | F2: U psnr | G2: V psnr | H2: Enc T [s] | I2: Dec T [s] | J2: VMAF | K2: MS SSIM | L2: Enc T [h] | N2: kbps | O2: Y psnr | P2: U psnr | Q2: V psnr | R2: Enc T [s] | S2: Dec T [s] | T2: VMAF | U2: MS SSIM | V2: Enc T [h] | W2: Enc | X2: Dec | Z2: Y | AA2: U | AB2: V | AC2: Y | AD2: U | AE2: V | AF2: Average PSNR | AG2: Average PSNR | AH2: YUV PSNR | AI2: VMAF | AJ2: MS-SSIM
A3: Class Gaming | B3: AOV5_1920x1080_60Hz_8bit_420 | C3: 22 | D3: 14094.41 | E3: 42.04 | F3: 43.72 | G3: 44.41 | H3: 26439.64 | I3: 52.65 | J3: 98.54 | K3: 0.99 | L3: =H3/3600 -> 7.34 | V3: =R3/3600 -> 0.00 | W3: =R3/H3 -> 0.00 | X3: =S3/I3 -> 0.00 | Z3: =bdrate($D3:$D6,E3:E6,$N3:$N6,O3:O6) ->  | AA3: =bdrate($D3:$D6,F3:F6,$N3:$N6,P3:P6) ->  | AB3: =bdrate($D3:$D6,G3:G6,$N3:$N6,Q3:Q6) ->  | AC3: =bdrateOld($D3:$D6,E3:E6,$N3:$N6,O3:O6) ->  | AD3: =bdrateOld($D3:$D6,F3:F6,$N3:$N6,P3:P6) ->  | AE3: =bdrateOld($D3:$D6,G3:G6,$N3:$N6,Q3:Q6) ->  | AF3: =(6*E3+F3+G3)/8 -> 42.55 | AG3: =(6*O3+P3+Q3)/8 -> 0.00 | AH3: =bdrate($D3:$D6,AF3:AF6,$N3:$N6,AG3:AG6) ->  | AI3: =bdrate($D3:$D6,J3:J6,$N3:$N6,T3:T6) ->  | AJ3: =bdrate($D3:$D6,K3:K6,$N3:$N6,U3:U6) -> 
A4: HD Tencent | C4: 27 | D4: 5554.60 | E4: 38.40 | F4: 40.77 | G4: 41.23 | H4: 22171.27 | I4: 36.34 | J4: 92.70 | K4: 0.99 | L4: 6.16 | V4: 0.00 | W4: 0.00 | X4: 0.00 | AF4: =(6*E4+F4+G4)/8 -> 39.05 | AG4: =(6*O4+P4+Q4)/8 -> 0.00
C5: 32 | D5: 2521.45 | E5: 35.34 | F5: 38.71 | G5: 39.01 | H5: 19154.43 | I5: 30.30 | J5: 81.91 | K5: 0.97 | L5: 5.32 | V5: 0.00 | W5: 0.00 | X5: 0.00 | AF5: 36.22 | AG5: 0.00
C6: 37 | D6: 1254.49 | E6: 32.60 | F6: 36.98 | G6: 37.12 | H6: 17833.77 | I6: 27.34 | J6: 66.80 | K6: 0.94 | L6: 4.95 | V6: 0.00 | W6: 0.00 | X6: 0.00 | AF6: 33.71 | AG6: 0.00
A7: HD Tencent | B7: baolei_1920x1080_60Hz_8bit_420_01 | C7: 22 | D7: 24718.22 | E7: 41.35 | F7: 42.40 | G7: 44.24 | H7: 32947.78 | I7: 60.22 | J7: 99.46 | K7: 0.99 | L7: 9.15 | V7: 0.00 | W7: 0.00 | X7: 0.00 | Z7: =bdrate($D7:$D10,E7:E10,$N7:$N10,O7:O10) ->  | AA7: =bdrate($D7:$D10,F7:F10,$N7:$N10,P7:P10) ->  | AB7: =bdrate($D7:$D10,G7:G10,$N7:$N10,Q7:Q10) ->  | AC7: =bdrateOld($D7:$D10,E7:E10,$N7:$N10,O7:O10) ->  | AD7: =bdrateOld($D7:$D10,F7:F10,$N7:$N10,P7:P10) ->  | AE7: =bdrateOld($D7:$D10,G7:G10,$N7:$N10,Q7:Q10) ->  | AF7: 41.84 | AG7: 0.00 | AH7: =bdrate($D7:$D10,AF7:AF10,$N7:$N10,AG7:AG10) ->  | AI7: =bdrate($D7:$D10,J7:J10,$N7:$N10,T7:T10) -> 
C8: 27 | D8: 10390.05 | E8: 37.46 | F8: 39.42 | G8: 41.45 | H8: 26441.54 | I8: 44.55 | J8: 95.50 | K8: 0.99 | L8: 7.34 | V8: 0.00 | W8: 0.00 | X8: 0.00 | AF8: 38.20 | AG8: 0.00
C9: 32 | D9: 4786.58 | E9: 34.15 | F9: 37.52 | G9: 39.48 | H9: 22736.82 | I9: 36.40 | J9: 84.68 | K9: 0.97 | L9: 6.32 | V9: 0.00 | W9: 0.00 | X9: 0.00 | AF9: 35.24 | AG9: 0.00
C10: 37 | D10: 2333.91 | E10: 31.25 | F10: 35.95 | G10: 37.85 | H10: 20185.58 | I10: 32.92 | J10: 69.15 | K10: 0.94 | L10: 5.61 | V10: 0.00 | W10: 0.00 | X10: 0.00 | AF10: 32.66 | AG10: 0.00
A11: UHD Tencent | B11: baolei_4096x2160_60Hz_8bit_420_01 | C11: 22 | D11: 43219.47 | E11: 46.20 | F11: 44.81 | G11: 45.46 | H11: 132042.14 | I11: 198.39 | J11: 99.58 | K11: 1.00 | L11: 36.68 | V11: 0.00 | W11: 0.00 | X11: 0.00 | Z11: =bdrate($D11:$D14,E11:E14,$N11:$N14,O11:O14) ->  | AA11: =bdrate($D11:$D14,F11:F14,$N11:$N14,P11:P14) ->  | AB11: =bdrate($D11:$D14,G11:G14,$N11:$N14,Q11:Q14) ->  | AC11: =bdrateOld($D11:$D14,E11:E14,$N11:$N14,O11:O14) ->  | AD11: =bdrateOld($D11:$D14,F11:F14,$N11:$N14,P11:P14) ->  | AE11: =bdrateOld($D11:$D14,G11:G14,$N11:$N14,Q11:Q14) ->  | AF11: 45.93 | AG11: 0.00 | AH11: =bdrate($D11:$D14,AF11:AF14,$N11:$N14,AG11:AG14) ->  | AI11: =bdrate($D11:$D14,J11:J14,$N11:$N14,T11:T14) -> 
C12: 27 | D12: 20274.77 | E12: 42.50 | F12: 41.58 | G12: 42.31 | H12: 116609.10 | I12: 184.67 | J12: 97.92 | K12: 0.99 | L12: 32.39 | V12: 0.00 | W12: 0.00 | X12: 0.00 | AF12: 42.36 | AG12: 0.00
C13: 32 | D13: 11042.00 | E13: 39.13 | F13: 39.50 | G13: 40.22 | H13: 103641.31 | I13: 137.17 | J13: 93.19 | K13: 0.98 | L13: 28.79 | V13: 0.00 | W13: 0.00 | X13: 0.00 | AF13: 39.31 | AG13: 0.00
C14: 37 | D14: 6399.08 | E14: 36.06 | F14: 37.75 | G14: 38.48 | H14: 94816.27 | I14: 126.45 | J14: 84.63 | K14: 0.97 | L14: 26.34 | V14: 0.00 | W14: 0.00 | X14: 0.00 | AF14: 36.57 | AG14: 0.00
A15: HD Tencent | B15: baolei_1920x1080_60Hz_8bit_420_02 | C15: 22 | D15: 16250.48 | E15: 43.28 | F15: 44.42 | G15: 44.40 | H15: 31290.80 | I15: 51.18 | J15: 98.92 | K15: 1.00 | L15: 8.69 | V15: 0.00 | W15: 0.00 | X15: 0.00 | Z15: =bdrate($D15:$D18,E15:E18,$N15:$N18,O15:O18) ->  | AA15: =bdrate($D15:$D18,F15:F18,$N15:$N18,P15:P18) ->  | AB15: =bdrate($D15:$D18,G15:G18,$N15:$N18,Q15:Q18) ->  | AC15: =bdrateOld($D15:$D18,E15:E18,$N15:$N18,O15:O18) ->  | AD15: =bdrateOld($D15:$D18,F15:F18,$N15:$N18,P15:P18) ->  | AE15: =bdrateOld($D15:$D18,G15:G18,$N15:$N18,Q15:Q18) ->  | AF15: 43.56 | AG15: 0.00 | AH15: =bdrate($D15:$D18,AF15:AF18,$N15:$N18,AG15:AG18) ->  | AI15: =bdrate($D15:$D18,J15:J18,$N15:$N18,T15:T18) -> 
C16: 27 | D16: 7018.48 | E16: 39.42 | F16: 41.16 | G16: 41.19 | H16: 25964.40 | I16: 44.08 | J16: 97.15 | K16: 0.99 | L16: 7.21 | V16: 0.00 | W16: 0.00 | X16: 0.00 | AF16: 39.86 | AG16: 0.00
C17: 32 | D17: 3436.90 | E17: 36.01 | F17: 38.96 | G17: 39.04 | H17: 22699.53 | I17: 39.01 | J17: 89.65 | K17: 0.98 | L17: 6.31 | V17: 0.00 | W17: 0.00 | X17: 0.00 | AF17: 36.76 | AG17: 0.00
C18: 37 | D18: 1814.61 | E18: 32.88 | F18: 37.15 | G18: 37.33 | H18: 20810.11 | I18: 34.36 | J18: 76.16 | K18: 0.96 | L18: 5.78 | V18: 0.00 | W18: 0.00 | X18: 0.00 | AF18: 33.97 | AG18: 0.00
A19: UHD Tencent | B19: baolei_4096x2160_60Hz_8bit_420_02 | C19: 22 | D19: 45957.09 | E19: 45.82 | F19: 44.90 | G19: 46.94 | H19: 138692.60 | I19: 206.14 | J19: 99.99 | K19: 1.00 | L19: 38.53 | V19: 0.00 | W19: 0.00 | X19: 0.00 | Z19: =bdrate($D19:$D22,E19:E22,$N19:$N22,O19:O22) ->  | AA19: =bdrate($D19:$D22,F19:F22,$N19:$N22,P19:P22) ->  | AB19: =bdrate($D19:$D22,G19:G22,$N19:$N22,Q19:Q22) ->  | AC19: =bdrateOld($D19:$D22,E19:E22,$N19:$N22,O19:O22) ->  | AD19: =bdrateOld($D19:$D22,F19:F22,$N19:$N22,P19:P22) ->  | AE19: =bdrateOld($D19:$D22,G19:G22,$N19:$N22,Q19:Q22) ->  | AF19: 45.84 | AG19: 0.00 | AH19: =bdrate($D19:$D22,AF19:AF22,$N19:$N22,AG19:AG22) ->  | AI19: =bdrate($D19:$D22,J19:J22,$N19:$N22,T19:T22) -> 
C20: 27 | D20: 20903.82 | E20: 41.88 | F20: 41.58 | G20: 44.11 | H20: 119039.14 | I20: 176.20 | J20: 98.50 | K20: 0.99 | L20: 33.07 | V20: 0.00 | W20: 0.00 | X20: 0.00 | AF20: 42.12 | AG20: 0.00
C21: 32 | D21: 10970.47 | E21: 38.46 | F21: 39.53 | G21: 42.29 | H21: 102100.55 | I21: 150.06 | J21: 92.92 | K21: 0.98 | L21: 28.36 | V21: 0.00 | W21: 0.00 | X21: 0.00 | AF21: 39.07 | AG21: 0.00
C22: 37 | D22: 6179.24 | E22: 35.44 | F22: 37.79 | G22: 40.74 | H22: 90775.56 | I22: 136.86 | J22: 84.59 | K22: 0.96 | L22: 25.22 | V22: 0.00 | W22: 0.00 | X22: 0.00 | AF22: 36.39 | AG22: 0.00
A23: HD Tencent | B23: jianling_1920x1080_60Hz_8bit_420_02 | C23: 22 | D23: 76393.36 | E23: 39.03 | F23: 40.74 | G23: 42.34 | H23: 46484.95 | I23: 88.38 | J23: 99.93 | K23: 0.99 | L23: 12.91 | V23: 0.00 | W23: 0.00 | X23: 0.00 | Z23: =bdrate($D23:$D26,E23:E26,$N23:$N26,O23:O26) ->  | AA23: =bdrate($D23:$D26,F23:F26,$N23:$N26,P23:P26) ->  | AB23: =bdrate($D23:$D26,G23:G26,$N23:$N26,Q23:Q26) ->  | AC23: =bdrateOld($D23:$D26,E23:E26,$N23:$N26,O23:O26) ->  | AD23: =bdrateOld($D23:$D26,F23:F26,$N23:$N26,P23:P26) ->  | AE23: =bdrateOld($D23:$D26,G23:G26,$N23:$N26,Q23:Q26) ->  | AF23: 39.66 | AG23: 0.00 | AH23: =bdrate($D23:$D26,AF23:AF26,$N23:$N26,AG23:AG26) ->  | AI23: =bdrate($D23:$D26,J23:J26,$N23:$N26,T23:T26) ->  | AJ23: =bdrate($D23:$D26,K23:K26,$N23:$N26,U23:U26) -> 
C24: 27 | D24: 33676.64 | E24: 34.10 | F24: 37.78 | G24: 39.78 | H24: 36649.35 | I24: 66.52 | J24: 98.02 | K24: 0.98 | L24: 10.18 | V24: 0.00 | W24: 0.00 | X24: 0.00 | AF24: 35.27 | AG24: 0.00
C25: 32 | D25: 13747.03 | E25: 30.25 | F25: 36.11 | G25: 38.18 | H25: 28525.70 | I25: 52.69 | J25: 87.37 | K25: 0.96 | L25: 7.92 | V25: 0.00 | W25: 0.00 | X25: 0.00 | AF25: 31.97 | AG25: 0.00
C26: 37 | D26: 4930.92 | E26: 27.42 | F26: 34.78 | G26: 36.75 | H26: 23511.75 | I26: 40.29 | J26: 69.48 | K26: 0.91 | L26: 6.53 | V26: 0.00 | W26: 0.00 | X26: 0.00 | AF26: 29.50 | AG26: 0.00
A27: HD Tencent | B27: jianling_1920x1080_60Hz_8bit_420_04 | C27: 22 | D27: 12652.66 | E27: 43.63 | F27: 48.64 | G27: 48.25 | H27: 25792.67 | I27: 45.22 | J27: 97.59 | K27: 0.99 | L27: 7.16 | V27: =R27/3600 -> 0.00 | W27: 0.00 | X27: 0.00 | Z27: =bdrate($D27:$D30,E27:E30,$N27:$N30,O27:O30) ->  | AA27: =bdrate($D27:$D30,F27:F30,$N27:$N30,P27:P30) ->  | AB27: =bdrate($D27:$D30,G27:G30,$N27:$N30,Q27:Q30) ->  | AC27: =bdrateOld($D27:$D30,E27:E30,$N27:$N30,O27:O30) ->  | AD27: =bdrateOld($D27:$D30,F27:F30,$N27:$N30,P27:P30) ->  | AE27: =bdrateOld($D27:$D30,G27:G30,$N27:$N30,Q27:Q30) ->  | AF27: 44.83 | AG27: 0.00 | AH27: =bdrate($D27:$D30,AF27:AF30,$N27:$N30,AG27:AG30) ->  | AI27: =bdrate($D27:$D30,J27:J30,$N27:$N30,T27:T30) -> 
C28: 27 | D28: 5574.06 | E28: 39.92 | F28: 45.86 | G28: 45.32 | H28: 21447.80 | I28: 37.81 | J28: 93.32 | K28: 0.99 | L28: 5.96 | V28: 0.00 | W28: 0.00 | X28: 0.00 | AF28: 41.34 | AG28: 0.00
C29: 32 | D29: 2444.80 | E29: 36.48 | F29: 43.61 | G29: 43.10 | H29: 18593.65 | I29: 33.08 | J29: 84.95 | K29: 0.98 | L29: 5.16 | V29: 0.00 | W29: 0.00 | X29: 0.00 | AF29: 38.20 | AG29: 0.00
C30: 37 | D30: 1073.39 | E30: 33.36 | F30: 41.43 | G30: 40.95 | H30: 17618.91 | I30: 30.13 | J30: 72.58 | K30: 0.96 | L30: 4.89 | V30: 0.00 | W30: 0.00 | X30: 0.00 | AF30: 35.32 | AG30: 0.00
A31: Class Gaming | B31: HeroesOfTheStorm_1920x1080_30Hz_8bit_P420_Part1 | C31: 22 | D31: 4700.22 | E31: 42.68 | F31: 43.99 | G31: 44.05 | H31: 9916.56 | I31: 18.82 | J31: 95.65 | K31: 0.99 | L31: =H31/3600 -> 2.75 | V31: =R31/3600 -> 0.00 | W31: =R31/H31 -> 0.00 | X31: =S31/I31 -> 0.00 | Z31: =bdrate($D31:$D34,E31:E34,$N31:$N34,O31:O34) ->  | AA31: =bdrate($D31:$D34,F31:F34,$N31:$N34,P31:P34) ->  | AB31: =bdrate($D31:$D34,G31:G34,$N31:$N34,Q31:Q34) ->  | AC31: =bdrateOld($D31:$D34,E31:E34,$N31:$N34,O31:O34) ->  | AD31: =bdrateOld($D31:$D34,F31:F34,$N31:$N34,P31:P34) ->  | AE31: =bdrateOld($D31:$D34,G31:G34,$N31:$N34,Q31:Q34) ->  | AF31: 43.01 | AG31: 0.00 | AH31: =bdrate($D31:$D34,AF31:AF34,$N31:$N34,AG31:AG34) ->  | AI31: =bdrate($D31:$D34,J31:J34,$N31:$N34,T31:T34) -> 
A32: HD | C32: 27 | D32: 2183.24 | E32: 39.01 | F32: 41.14 | G32: 41.25 | H32: 8838.40 | I32: 16.85 | J32: 91.35 | K32: 0.99 | L32: 2.46 | V32: 0.00 | W32: =R32/H32 -> 0.00 | X32: 0.00 | AF32: 39.56 | AG32: 0.00
A33: Kingston | C33: 32 | D33: 1011.54 | E33: 35.72 | F33: 39.21 | G33: 39.30 | H33: 8473.09 | I33: 12.60 | J33: 82.40 | K33: 0.97 | L33: 2.35 | V33: 0.00 | W33: 0.00 | X33: 0.00 | AF33: 36.60 | AG33: 0.00
A34: University | C34: 37 | D34: 467.85 | E34: 32.81 | F34: 37.49 | G34: 37.56 | H34: 7796.32 | I34: 14.02 | J34: 68.54 | K34: 0.95 | L34: 2.17 | V34: 0.00 | W34: 0.00 | X34: 0.00 | AF34: 33.99 | AG34: 0.00
B35: ProjectCars_1920x1080_30Hz_8bit_P420_Part1 | C35: 22 | D35: 12497.23 | E35: 41.46 | F35: 48.46 | G35: 48.59 | H35: 17693.30 | I35: 31.05 | J35: 99.55 | K35: 0.99 | L35: 4.91 | V35: 0.00 | W35: 0.00 | X35: 0.00 | Z35: =bdrate($D35:$D38,E35:E38,$N35:$N38,O35:O38) ->  | AA35: =bdrate($D35:$D38,F35:F38,$N35:$N38,P35:P38) ->  | AB35: =bdrate($D35:$D38,G35:G38,$N35:$N38,Q35:Q38) ->  | AC35: =bdrateOld($D35:$D38,E35:E38,$N35:$N38,O35:O38) ->  | AD35: =bdrateOld($D35:$D38,F35:F38,$N35:$N38,P35:P38) ->  | AE35: =bdrateOld($D35:$D38,G35:G38,$N35:$N38,Q35:Q38) ->  | AF35: 43.22 | AG35: 0.00 | AH35: =bdrate($D35:$D38,AF35:AF38,$N35:$N38,AG35:AG38) ->  | AI35: =bdrate($D35:$D38,J35:J38,$N35:$N38,T35:T38) -> 
C36: 27 | D36: 4591.05 | E36: 38.09 | F36: 46.16 | G36: 46.28 | H36: 14218.29 | I36: 23.47 | J36: 95.82 | K36: 0.99 | L36: 3.95 | V36: 0.00 | W36: 0.00 | X36: 0.00 | AF36: 40.13 | AG36: 0.00
C37: 32 | D37: 1908.36 | E37: 35.32 | F37: 44.56 | G37: 44.60 | H37: 11620.16 | I37: 19.27 | J37: 86.51 | K37: 0.97 | L37: 3.23 | V37: 0.00 | W37: 0.00 | X37: 0.00 | AF37: 37.64 | AG37: 0.00
C38: 37 | D38: 857.41 | E38: 32.87 | F38: 43.15 | G38: 43.02 | H38: 10011.25 | I38: 17.38 | J38: 74.19 | K38: 0.96 | L38: 2.78 | V38: 0.00 | W38: 0.00 | X38: 0.00 | AF38: 35.43 | AG38: 0.00
B39: WoW_1920x1080_30Hz_8bit_P420_Part2 | C39: 22 | D39: 2288.96 | E39: 47.65 | F39: 49.73 | G39: 50.03 | H39: 9924.92 | I39: 15.75 | J39: 97.43 | K39: 1.00 | L39: 2.76 | V39: 0.00 | W39: 0.00 | X39: 0.00 | Z39: =bdrate($D39:$D42,E39:E42,$N39:$N42,O39:O42) ->  | AA39: =bdrate($D39:$D42,F39:F42,$N39:$N42,P39:P42) ->  | AB39: =bdrate($D39:$D42,G39:G42,$N39:$N42,Q39:Q42) ->  | AC39: =bdrateOld($D39:$D42,E39:E42,$N39:$N42,O39:O42) ->  | AD39: =bdrateOld($D39:$D42,F39:F42,$N39:$N42,P39:P42) ->  | AE39: =bdrateOld($D39:$D42,G39:G42,$N39:$N42,Q39:Q42) ->  | AF39: 48.21 | AG39: 0.00 | AH39: =bdrate($D39:$D42,AF39:AF42,$N39:$N42,AG39:AG42) ->  | AI39: =bdrate($D39:$D42,J39:J42,$N39:$N42,T39:T42) -> 
C40: 27 | D40: 1061.50 | E40: 43.84 | F40: 46.69 | G40: 47.46 | H40: 8775.87 | I40: 14.46 | J40: 93.40 | K40: 0.99 | L40: 2.44 | V40: 0.00 | W40: 0.00 | X40: 0.00 | AF40: 44.65 | AG40: 0.00
C41: 32 | D41: 516.16 | E41: 40.27 | F41: 44.25 | G41: 45.48 | H41: 7729.60 | I41: 13.19 | J41: 85.06 | K41: 0.98 | L41: 2.15 | V41: 0.00 | W41: 0.00 | X41: 0.00 | AF41: 41.42 | AG41: 0.00
C42: 37 | D42: 261.32 | E42: 36.93 | F42: 41.71 | G42: 43.74 | H42: 7435.55 | I42: 13.25 | J42: 73.00 | K42: 0.97 | L42: 2.07 | V42: 0.00 | W42: 0.00 | X42: 0.00 | AF42: 38.38 | AG42: 0.00
A43: Class Gaming | B43: MINECRAFT_1920x1080_60Hz_8bit_P420 | C43: 22 | D43: 51161.82 | E43: 41.74 | F43: 43.63 | G43: 44.57 | H43: 42359.32 | I43: 78.52 | J43: 99.81 | K43: 1.00 | L43: 11.77 | V43: 0.00 | W43: 0.00 | X43: 0.00 | Z43: =bdrate($D43:$D46,E43:E46,$N43:$N46,O43:O46) ->  | AA43: =bdrate($D43:$D46,F43:F46,$N43:$N46,P43:P46) ->  | AB43: =bdrate($D43:$D46,G43:G46,$N43:$N46,Q43:Q46) ->  | AC43: =bdrateOld($D43:$D46,E43:E46,$N43:$N46,O43:O46) ->  | AD43: =bdrateOld($D43:$D46,F43:F46,$N43:$N46,P43:P46) ->  | AE43: =bdrateOld($D43:$D46,G43:G46,$N43:$N46,Q43:Q46) ->  | AF43: 42.33 | AG43: 0.00 | AH43: =bdrate($D43:$D46,AF43:AF46,$N43:$N46,AG43:AG46) ->  | AI43: =bdrate($D43:$D46,J43:J46,$N43:$N46,T43:T46) -> 
A44: HD | C44: 27 | D44: 20289.52 | E44: 36.29 | F44: 40.78 | G44: 42.04 | H44: 32096.67 | I44: 57.70 | J44: 97.49 | K44: 0.98 | L44: 8.92 | V44: 0.00 | W44: 0.00 | X44: 0.00 | AF44: 37.57 | AG44: 0.00
A45: DERF_TWITCH | C45: 32 | D45: 7835.62 | E45: 32.75 | F45: 39.05 | G45: 40.42 | H45: 26364.83 | I45: 44.14 | J45: 85.67 | K45: 0.96 | L45: 7.32 | V45: 0.00 | W45: 0.00 | X45: 0.00 | AF45: 34.49 | AG45: 0.00
C46: 37 | D46: 3418.98 | E46: 30.24 | F46: 37.69 | G46: 39.15 | H46: 22651.55 | I46: 37.93 | J46: 67.78 | K46: 0.92 | L46: 6.29 | V46: 0.00 | W46: 0.00 | X46: 0.00 | AF46: 32.28 | AG46: 0.00
B47: CSGO_1920x1080_60Hz_8bit_P420 | C47: 22 | D47: 14193.62 | E47: 45.66 | F47: 51.42 | G47: 53.36 | H47: 25759.11 | I47: 40.84 | J47: 97.60 | K47: 1.00 | L47: =H47/3600 -> 7.16 | V47: =R47/3600 -> 0.00 | W47: 0.00 | X47: 0.00 | Z47: =bdrate($D47:$D50,E47:E50,$N47:$N50,O47:O50) ->  | AA47: =bdrate($D47:$D50,F47:F50,$N47:$N50,P47:P50) ->  | AB47: =bdrate($D47:$D50,G47:G50,$N47:$N50,Q47:Q50) ->  | AC47: =bdrateOld($D47:$D50,E47:E50,$N47:$N50,O47:O50) ->  | AD47: =bdrateOld($D47:$D50,F47:F50,$N47:$N50,P47:P50) ->  | AE47: =bdrateOld($D47:$D50,G47:G50,$N47:$N50,Q47:Q50) ->  | AF47: 47.34 | AG47: 0.00 | AH47: =bdrate($D47:$D50,AF47:AF50,$N47:$N50,AG47:AG50) ->  | AI47: =bdrate($D47:$D50,J47:J50,$N47:$N50,T47:T50) -> 
C48: 27 | D48: 5307.95 | E48: 42.25 | F48: 48.81 | G48: 51.21 | H48: 21820.32 | I48: 37.17 | J48: 94.22 | K48: 0.99 | L48: =H48/3600 -> 6.06 | V48: 0.00 | W48: 0.00 | X48: 0.00 | AF48: 44.19 | AG48: 0.00
C49: 32 | D49: 2259.69 | E49: 38.95 | F49: 46.86 | G49: 49.67 | H49: 19176.51 | I49: 29.65 | J49: 85.50 | K49: 0.98 | L49: =H49/3600 -> 5.33 | V49: 0.00 | W49: 0.00 | X49: 0.00 | AF49: 41.28 | AG49: 0.00
C50: 37 | D50: 1057.86 | E50: 35.63 | F50: 45.40 | G50: 48.74 | H50: 17639.48 | I50: 25.53 | J50: 72.68 | K50: 0.96 | L50: =H50/3600 -> 4.90 | V50: 0.00 | W50: 0.00 | X50: 0.00 | AF50: 38.49 | AG50: 0.00
B51: STARCRAFT_1920x1080_60Hz_8bit_P420 | C51: 22 | D51: 7576.08 | E51: 43.05 | F51: 47.33 | G51: 47.97 | H51: 19157.29 | I51: 34.30 | J51: 96.86 | K51: 1.00 | L51: =H51/3600 -> 5.32 | V51: 0.00 | W51: 0.00 | X51: 0.00 | Z51: =bdrate($D51:$D54,E51:E54,$N51:$N54,O51:O54) ->  | AA51: =bdrate($D51:$D54,F51:F54,$N51:$N54,P51:P54) ->  | AB51: =bdrate($D51:$D54,G51:G54,$N51:$N54,Q51:Q54) ->  | AC51: =bdrateOld($D51:$D54,E51:E54,$N51:$N54,O51:O54) ->  | AD51: =bdrateOld($D51:$D54,F51:F54,$N51:$N54,P51:P54) ->  | AE51: =bdrateOld($D51:$D54,G51:G54,$N51:$N54,Q51:Q54) ->  | AF51: 44.20 | AG51: 0.00 | AH51: =bdrate($D51:$D54,AF51:AF54,$N51:$N54,AG51:AG54) ->  | AI51: =bdrate($D51:$D54,J51:J54,$N51:$N54,T51:T54) -> 
C52: 27 | D52: 3160.07 | E52: 39.24 | F52: 43.94 | G52: 44.59 | H52: 16976.84 | I52: 28.25 | J52: 93.82 | K52: 0.99 | L52: =H52/3600 -> 4.72 | V52: 0.00 | W52: 0.00 | X52: 0.00 | AF52: 40.50 | AG52: 0.00
C53: 32 | D53: 1263.76 | E53: 35.71 | F53: 41.46 | G53: 41.94 | H53: 16047.50 | I53: 23.80 | J53: 86.42 | K53: 0.98 | L53: 4.46 | V53: 0.00 | W53: 0.00 | X53: 0.00 | AF53: 37.21 | AG53: 0.00
C54: 37 | D54: 520.51 | E54: 32.54 | F54: 39.59 | G54: 39.79 | H54: 15242.12 | I54: 23.81 | J54: 73.98 | K54: 0.96 | L54: 4.23 | V54: 0.00 | W54: 0.00 | X54: 0.00 | AF54: 34.33 | AG54: 0.00
B55: Class Gaming HD | I55: =GEOMEAN(I3:I10,I15:I18,I23:I54) -> 31.51 | J55: =GEOMEAN(J3:J10,J15:J18,J23:J54) -> 86.78 | K55: 0.98 | L55: 5.16 | S55: =GEOMEAN(S3:S10,S15:S18,S23:S54) ->  | T55: =GEOMEAN(T3:T10,T15:T18,T23:T54) ->  | U55: =GEOMEAN(U3:U10,U15:U18,U23:U54) ->  | V55: =GEOMEAN(V3:V10,V15:V18,V23:V54) ->  | W55: =GEOMEAN(W3:W10,W15,W23:W54) ->  | Z55: =AVERAGE(Z3:Z10,Z15:Z18,Z23:Z54) ->  | AA55: =AVERAGE(AA3:AA10,AA15:AA18,AA23:AA54) ->  | AH55: =AVERAGE(AH3:AH10,AH15:AH18,AH23:AH54) ->  | AI55: =AVERAGE(AI3:AI10,AI15:AI18,AI23:AI54) ->  | AJ55: =AVERAGE(AJ3:AJ10,AJ15:AJ18,AJ23:AJ54) -> 
B56: Class Gaming UHD | I56: =GEOMEAN(I11:I14,I19:I22) -> 161.99 | J56: =GEOMEAN(J11:J14,J19:J22) -> 93.72 | K56: 0.98 | L56: 30.85 | S56: =GEOMEAN(S11:S14,S19:S22) ->  | T56: =GEOMEAN(T11:T14,T19:T22) ->  | W56: =GEOMEAN(W11:W14,W19:W22) ->  | Z56: =AVERAGE(Z11:Z14,Z19:Z22) ->  | AA56: =AVERAGE(AA11:AA14,AA19:AA22) ->  | AH56: =AVERAGE(AH11:AH14,AH19:AH22) ->  | AI56: =AVERAGE(AI11:AI14,AI19:AI22) -> 
B57: Class Gaming | I57: =GEOMEAN(I3:I54) -> 40.53 | L57: =GEOMEAN(L3:L54) -> 6.79 | S57: =GEOMEAN(S3:S54) ->  | V57: =GEOMEAN(V3:V54) ->  | W57: =GEOMEAN(W3:W54) ->  | X57: =GEOMEAN(X3:X54) ->  | Z57: =AVERAGE(Z3:Z54) ->  | AA57: =AVERAGE(AA3:AA54) ->  | AH57: =AVERAGE(AH3:AH54) ->  | AI57: =AVERAGE(AI3:AI54) -> 
B58: All
B59: Time geomean | I59: =GEOMEAN(I3:I54) -> 40.53 | L59: =GEOMEAN(L3:L54) -> 6.79 | S59: =GEOMEAN(S3:S54) ->  | V59: =GEOMEAN(V3:V54) -> 
B60: Time ratio | S60: =S59/I59 ->  | V60: =V59/L59 -> 
B61: Time sum (hours)

Sheet LDP-10
D1: =Summary!M3 -> HM-16.22 Main10 | N1: =Summary!M4 -> test | Z1: BD-rate (piecewise cubic) | AC1: BD-rate (cubic) | AF1: Reference | AG1: Tested | AH1: BD-rate
C2: QPISlice | D2: kbps | E2: Y psnr | F2: U psnr | G2: V psnr | H2: Enc T [s] | I2: Dec T [s] | J2: VMAF | K2: MS SSIM | L2: Enc T [h] | N2: kbps | O2: Y psnr | P2: U psnr | Q2: V psnr | R2: Enc T [s] | S2: Dec T [s] | T2: VMAF | U2: MS SSIM | V2: Enc T [h] | W2: Enc | X2: Dec | Z2: Y | AA2: U | AB2: V | AC2: Y | AD2: U | AE2: V | AF2: Average PSNR | AG2: Average PSNR | AH2: YUV PSNR | AI2: VMAF | AJ2: MS-SSIM
A3: Class Gaming | B3: AOV5_1920x1080_60Hz_8bit_420 | C3: 22 | L3: =H3/3600 -> 0.00 | V3: =R3/3600 -> 0.00 | W3: =R3/H3 ->  | X3: =S3/I3 ->  | Z3: =bdrate($D3:$D6,E3:E6,$N3:$N6,O3:O6) ->  | AA3: =bdrate($D3:$D6,F3:F6,$N3:$N6,P3:P6) ->  | AB3: =bdrate($D3:$D6,G3:G6,$N3:$N6,Q3:Q6) ->  | AC3: =bdrateOld($D3:$D6,E3:E6,$N3:$N6,O3:O6) ->  | AD3: =bdrateOld($D3:$D6,F3:F6,$N3:$N6,P3:P6) ->  | AE3: =bdrateOld($D3:$D6,G3:G6,$N3:$N6,Q3:Q6) ->  | AF3: =(6*E3+F3+G3)/8 -> 0.00 | AG3: =(6*O3+P3+Q3)/8 -> 0.00 | AH3: =bdrate($D3:$D6,AF3:AF6,$N3:$N6,AG3:AG6) ->  | AI3: =bdrate($D3:$D6,J3:J6,$N3:$N6,T3:T6) -> 
A4: HD Tencent | C4: 27 | L4: 0.00 | V4: 0.00 | AF4: 0.00 | AG4: 0.00
C5: 32 | L5: 0.00 | V5: 0.00 | AF5: 0.00 | AG5: 0.00
C6: 37 | L6: 0.00 | V6: 0.00 | AF6: 0.00 | AG6: 0.00
B7: baolei_1920x1080_60Hz_8bit_420_01 | C7: 22 | L7: 0.00 | V7: 0.00 | Z7: =bdrate($D7:$D10,E7:E10,$N7:$N10,O7:O10) ->  | AA7: =bdrate($D7:$D10,F7:F10,$N7:$N10,P7:P10) ->  | AB7: =bdrate($D7:$D10,G7:G10,$N7:$N10,Q7:Q10) ->  | AC7: =bdrateOld($D7:$D10,E7:E10,$N7:$N10,O7:O10) ->  | AD7: =bdrateOld($D7:$D10,F7:F10,$N7:$N10,P7:P10) ->  | AE7: =bdrateOld($D7:$D10,G7:G10,$N7:$N10,Q7:Q10) ->  | AF7: =(6*E7+F7+G7)/8 -> 0.00 | AG7: =(6*O7+P7+Q7)/8 -> 0.00 | AH7: =bdrate($D7:$D10,AF7:AF10,$N7:$N10,AG7:AG10) ->  | AI7: =bdrate($D7:$D10,J7:J10,$N7:$N10,T7:T10) -> 
C8: 27 | L8: 0.00 | V8: 0.00 | AF8: 0.00 | AG8: 0.00
C9: 32 | L9: 0.00 | V9: 0.00 | AF9: 0.00 | AG9: 0.00
C10: 37 | L10: 0.00 | V10: 0.00 | AF10: 0.00 | AG10: 0.00
B11: baolei_4096x2160_60Hz_8bit_420_01 | C11: 22 | L11: =H11/3600 -> 0.00 | V11: =R11/3600 -> 0.00 | Z11: =bdrate($D11:$D14,E11:E14,$N11:$N14,O11:O14) ->  | AA11: =bdrate($D11:$D14,F11:F14,$N11:$N14,P11:P14) ->  | AB11: =bdrate($D11:$D14,G11:G14,$N11:$N14,Q11:Q14) ->  | AC11: =bdrateOld($D11:$D14,E11:E14,$N11:$N14,O11:O14) ->  | AD11: =bdrateOld($D11:$D14,F11:F14,$N11:$N14,P11:P14) ->  | AE11: =bdrateOld($D11:$D14,G11:G14,$N11:$N14,Q11:Q14) ->  | AF11: 0.00 | AG11: 0.00 | AH11: =bdrate($D11:$D14,AF11:AF14,$N11:$N14,AG11:AG14) ->  | AI11: =bdrate($D11:$D14,J11:J14,$N11:$N14,T11:T14) -> 
C12: 27 | L12: =H12/3600 -> 0.00 | V12: =R12/3600 -> 0.00 | AF12: 0.00 | AG12: 0.00
C13: 32 | L13: =H13/3600 -> 0.00 | V13: =R13/3600 -> 0.00 | AF13: 0.00 | AG13: 0.00
C14: 37 | L14: =H14/3600 -> 0.00 | V14: =R14/3600 -> 0.00 | AF14: 0.00 | AG14: 0.00
B15: baolei_1920x1080_60Hz_8bit_420_02 | C15: 22 | L15: 0.00 | V15: 0.00 | Z15: =bdrate($D15:$D18,E15:E18,$N15:$N18,O15:O18) ->  | AA15: =bdrate($D15:$D18,F15:F18,$N15:$N18,P15:P18) ->  | AB15: =bdrate($D15:$D18,G15:G18,$N15:$N18,Q15:Q18) ->  | AC15: =bdrateOld($D15:$D18,E15:E18,$N15:$N18,O15:O18) ->  | AD15: =bdrateOld($D15:$D18,F15:F18,$N15:$N18,P15:P18) ->  | AE15: =bdrateOld($D15:$D18,G15:G18,$N15:$N18,Q15:Q18) ->  | AF15: 0.00 | AG15: 0.00 | AH15: =bdrate($D15:$D18,AF15:AF18,$N15:$N18,AG15:AG18) ->  | AI15: =bdrate($D15:$D18,J15:J18,$N15:$N18,T15:T18) -> 
C16: 27 | L16: 0.00 | V16: 0.00 | AF16: 0.00 | AG16: 0.00
C17: 32 | L17: 0.00 | V17: 0.00 | AF17: 0.00 | AG17: 0.00
C18: 37 | L18: 0.00 | V18: 0.00 | AF18: 0.00 | AG18: 0.00
B19: baolei_4096x2160_60Hz_8bit_420_02 | C19: 22 | L19: =H19/3600 -> 0.00 | V19: =R19/3600 -> 0.00 | Z19: =bdrate($D19:$D22,E19:E22,$N19:$N22,O19:O22) ->  | AA19: =bdrate($D19:$D22,F19:F22,$N19:$N22,P19:P22) ->  | AB19: =bdrate($D19:$D22,G19:G22,$N19:$N22,Q19:Q22) ->  | AC19: =bdrateOld($D19:$D22,E19:E22,$N19:$N22,O19:O22) ->  | AD19: =bdrateOld($D19:$D22,F19:F22,$N19:$N22,P19:P22) ->  | AE19: =bdrateOld($D19:$D22,G19:G22,$N19:$N22,Q19:Q22) ->  | AF19: 0.00 | AG19: 0.00 | AH19: =bdrate($D19:$D22,AF19:AF22,$N19:$N22,AG19:AG22) ->  | AI19: =bdrate($D19:$D22,J19:J22,$N19:$N22,T19:T22) -> 
C20: 27 | L20: =H20/3600 -> 0.00 | V20: =R20/3600 -> 0.00 | AF20: 0.00 | AG20: 0.00
C21: 32 | L21: =H21/3600 -> 0.00 | V21: =R21/3600 -> 0.00 | AF21: 0.00 | AG21: 0.00
C22: 37 | L22: =H22/3600 -> 0.00 | V22: =R22/3600 -> 0.00 | AF22: 0.00 | AG22: 0.00
B23: jianling_1920x1080_60Hz_8bit_420_02 | C23: 22 | L23: 0.00 | V23: 0.00 | Z23: =bdrate($D23:$D26,E23:E26,$N23:$N26,O23:O26) ->  | AA23: =bdrate($D23:$D26,F23:F26,$N23:$N26,P23:P26) ->  | AB23: =bdrate($D23:$D26,G23:G26,$N23:$N26,Q23:Q26) ->  | AC23: =bdrateOld($D23:$D26,E23:E26,$N23:$N26,O23:O26) ->  | AD23: =bdrateOld($D23:$D26,F23:F26,$N23:$N26,P23:P26) ->  | AE23: =bdrateOld($D23:$D26,G23:G26,$N23:$N26,Q23:Q26) ->  | AF23: 0.00 | AG23: 0.00 | AH23: =bdrate($D23:$D26,AF23:AF26,$N23:$N26,AG23:AG26) ->  | AI23: =bdrate($D23:$D26,J23:J26,$N23:$N26,T23:T26) ->  | AJ23: =bdrate($D23:$D26,K23:K26,$N23:$N26,U23:U26) -> 
C24: 27 | L24: 0.00 | V24: 0.00 | AF24: 0.00 | AG24: 0.00
C25: 32 | L25: 0.00 | V25: 0.00 | AF25: 0.00 | AG25: 0.00
C26: 37 | L26: 0.00 | V26: 0.00 | AF26: 0.00 | AG26: 0.00
B27: jianling_1920x1080_60Hz_8bit_420_04 | C27: 22 | L27: 0.00 | V27: 0.00 | Z27: =bdrate($D27:$D30,E27:E30,$N27:$N30,O27:O30) ->  | AA27: =bdrate($D27:$D30,F27:F30,$N27:$N30,P27:P30) ->  | AB27: =bdrate($D27:$D30,G27:G30,$N27:$N30,Q27:Q30) ->  | AC27: =bdrateOld($D27:$D30,E27:E30,$N27:$N30,O27:O30) ->  | AD27: =bdrateOld($D27:$D30,F27:F30,$N27:$N30,P27:P30) ->  | AE27: =bdrateOld($D27:$D30,G27:G30,$N27:$N30,Q27:Q30) ->  | AF27: 0.00 | AG27: 0.00 | AH27: =bdrate($D27:$D30,AF27:AF30,$N27:$N30,AG27:AG30) ->  | AI27: =bdrate($D27:$D30,J27:J30,$N27:$N30,T27:T30) -> 
C28: 27 | L28: 0.00 | V28: 0.00 | AF28: 0.00 | AG28: 0.00
C29: 32 | L29: 0.00 | V29: 0.00 | AF29: 0.00 | AG29: 0.00
C30: 37 | L30: 0.00 | V30: 0.00 | AF30: 0.00 | AG30: 0.00
A31: Class Gaming | B31: HeroesOfTheStorm_1920x1080_30Hz_8bit_P420_Part1 | C31: 22 | L31: 0.00 | V31: 0.00 | Z31: =bdrate($D31:$D34,E31:E34,$N31:$N34,O31:O34) ->  | AA31: =bdrate($D31:$D34,F31:F34,$N31:$N34,P31:P34) ->  | AB31: =bdrate($D31:$D34,G31:G34,$N31:$N34,Q31:Q34) ->  | AC31: =bdrateOld($D31:$D34,E31:E34,$N31:$N34,O31:O34) ->  | AD31: =bdrateOld($D31:$D34,F31:F34,$N31:$N34,P31:P34) ->  | AE31: =bdrateOld($D31:$D34,G31:G34,$N31:$N34,Q31:Q34) ->  | AF31: 0.00 | AG31: 0.00 | AH31: =bdrate($D31:$D34,AF31:AF34,$N31:$N34,AG31:AG34) ->  | AI31: =bdrate($D31:$D34,J31:J34,$N31:$N34,T31:T34) -> 
A32: HD | C32: 27 | L32: 0.00 | V32: 0.00 | AF32: 0.00 | AG32: 0.00
A33: Kingston | C33: 32 | L33: 0.00 | V33: 0.00 | AF33: 0.00 | AG33: 0.00
A34: University | C34: 37 | L34: 0.00 | V34: 0.00 | AF34: 0.00 | AG34: 0.00
B35: ProjectCars_1920x1080_30Hz_8bit_P420_Part1 | C35: 22 | L35: 0.00 | V35: 0.00 | W35: =R35/H35 ->  | X35: =S35/I35 ->  | Z35: =bdrate($D35:$D38,E35:E38,$N35:$N38,O35:O38) ->  | AA35: =bdrate($D35:$D38,F35:F38,$N35:$N38,P35:P38) ->  | AB35: =bdrate($D35:$D38,G35:G38,$N35:$N38,Q35:Q38) ->  | AC35: =bdrateOld($D35:$D38,E35:E38,$N35:$N38,O35:O38) ->  | AD35: =bdrateOld($D35:$D38,F35:F38,$N35:$N38,P35:P38) ->  | AE35: =bdrateOld($D35:$D38,G35:G38,$N35:$N38,Q35:Q38) ->  | AF35: 0.00 | AG35: 0.00 | AH35: =bdrate($D35:$D38,AF35:AF38,$N35:$N38,AG35:AG38) ->  | AI35: =bdrate($D35:$D38,J35:J38,$N35:$N38,T35:T38) -> 
C36: 27 | L36: 0.00 | V36: 0.00 | AF36: 0.00 | AG36: 0.00
C37: 32 | L37: 0.00 | V37: 0.00 | AF37: 0.00 | AG37: 0.00
C38: 37 | L38: 0.00 | V38: 0.00 | AF38: 0.00 | AG38: 0.00
B39: WoW_1920x1080_30Hz_8bit_P420_Part2 | C39: 22 | L39: 0.00 | V39: 0.00 | Z39: =bdrate($D39:$D42,E39:E42,$N39:$N42,O39:O42) ->  | AA39: =bdrate($D39:$D42,F39:F42,$N39:$N42,P39:P42) ->  | AB39: =bdrate($D39:$D42,G39:G42,$N39:$N42,Q39:Q42) ->  | AC39: =bdrateOld($D39:$D42,E39:E42,$N39:$N42,O39:O42) ->  | AD39: =bdrateOld($D39:$D42,F39:F42,$N39:$N42,P39:P42) ->  | AE39: =bdrateOld($D39:$D42,G39:G42,$N39:$N42,Q39:Q42) ->  | AF39: 0.00 | AG39: 0.00 | AH39: =bdrate($D39:$D42,AF39:AF42,$N39:$N42,AG39:AG42) ->  | AI39: =bdrate($D39:$D42,J39:J42,$N39:$N42,T39:T42) -> 
C40: 27 | L40: 0.00 | V40: =R40/3600 -> 0.00 | AF40: 0.00 | AG40: 0.00
C41: 32 | L41: 0.00 | V41: 0.00 | AF41: 0.00 | AG41: 0.00
C42: 37 | L42: 0.00 | V42: 0.00 | AF42: 0.00 | AG42: 0.00
A43: Class Gaming | B43: MINECRAFT_1920x1080_60Hz_8bit_P420 | C43: 22 | L43: 0.00 | V43: 0.00 | Z43: =bdrate($D43:$D46,E43:E46,$N43:$N46,O43:O46) ->  | AA43: =bdrate($D43:$D46,F43:F46,$N43:$N46,P43:P46) ->  | AB43: =bdrate($D43:$D46,G43:G46,$N43:$N46,Q43:Q46) ->  | AC43: =bdrateOld($D43:$D46,E43:E46,$N43:$N46,O43:O46) ->  | AD43: =bdrateOld($D43:$D46,F43:F46,$N43:$N46,P43:P46) ->  | AE43: =bdrateOld($D43:$D46,G43:G46,$N43:$N46,Q43:Q46) ->  | AF43: 0.00 | AG43: 0.00 | AH43: =bdrate($D43:$D46,AF43:AF46,$N43:$N46,AG43:AG46) ->  | AI43: =bdrate($D43:$D46,J43:J46,$N43:$N46,T43:T46) -> 
A44: HD | C44: 27 | L44: 0.00 | V44: 0.00 | AF44: 0.00 | AG44: 0.00
A45: DERF_TWITCH | C45: 32 | L45: 0.00 | V45: 0.00 | AF45: 0.00 | AG45: 0.00
C46: 37 | L46: 0.00 | V46: 0.00 | AF46: 0.00 | AG46: 0.00
B47: CSGO_1920x1080_60Hz_8bit_P420 | C47: 22 | L47: 0.00 | V47: 0.00 | Z47: =bdrate($D47:$D50,E47:E50,$N47:$N50,O47:O50) ->  | AA47: =bdrate($D47:$D50,F47:F50,$N47:$N50,P47:P50) ->  | AB47: =bdrate($D47:$D50,G47:G50,$N47:$N50,Q47:Q50) ->  | AC47: =bdrateOld($D47:$D50,E47:E50,$N47:$N50,O47:O50) ->  | AD47: =bdrateOld($D47:$D50,F47:F50,$N47:$N50,P47:P50) ->  | AE47: =bdrateOld($D47:$D50,G47:G50,$N47:$N50,Q47:Q50) ->  | AF47: 0.00 | AG47: 0.00 | AH47: =bdrate($D47:$D50,AF47:AF50,$N47:$N50,AG47:AG50) ->  | AI47: =bdrate($D47:$D50,J47:J50,$N47:$N50,T47:T50) -> 
C48: 27 | L48: 0.00 | V48: 0.00 | AF48: 0.00 | AG48: 0.00
C49: 32 | L49: 0.00 | V49: 0.00 | AF49: 0.00 | AG49: 0.00
C50: 37 | L50: 0.00 | V50: 0.00 | AF50: 0.00 | AG50: 0.00
B51: STARCRAFT_1920x1080_60Hz_8bit_P420 | C51: 22 | L51: 0.00 | V51: 0.00 | Z51: =bdrate($D51:$D54,E51:E54,$N51:$N54,O51:O54) ->  | AA51: =bdrate($D51:$D54,F51:F54,$N51:$N54,P51:P54) ->  | AB51: =bdrate($D51:$D54,G51:G54,$N51:$N54,Q51:Q54) ->  | AC51: =bdrateOld($D51:$D54,E51:E54,$N51:$N54,O51:O54) ->  | AD51: =bdrateOld($D51:$D54,F51:F54,$N51:$N54,P51:P54) ->  | AE51: =bdrateOld($D51:$D54,G51:G54,$N51:$N54,Q51:Q54) ->  | AF51: 0.00 | AG51: 0.00 | AH51: =bdrate($D51:$D54,AF51:AF54,$N51:$N54,AG51:AG54) ->  | AI51: =bdrate($D51:$D54,J51:J54,$N51:$N54,T51:T54) -> 
C52: 27 | L52: =H52/3600 -> 0.00 | V52: 0.00 | AF52: 0.00 | AG52: 0.00
C53: 32 | L53: 0.00 | V53: 0.00 | AF53: 0.00 | AG53: 0.00
C54: 37 | L54: 0.00 | V54: 0.00 | AF54: 0.00 | AG54: 0.00
B55: Class Gaming HD | I55: =GEOMEAN(I3:I10,I15,I23:I54) ->  | J55: =GEOMEAN(J3:J10,J15,J23:J54) ->  | S55: =GEOMEAN(S3:S10,S15,S23:S54) ->  | T55: =GEOMEAN(T3:T10,T15,T23:T54) ->  | Z55: =AVERAGE(Z3:Z10,Z15,Z23:Z54) ->  | AA55: =AVERAGE(AA3:AA10,AA15,AA23:AA54) ->  | AC55: =AVERAGE(AC3:AC10,AC15,AC23:AC54) ->  | AD55: =AVERAGE(AD3:AD10,AD15,AD23:AD54) ->  | AH55: =AVERAGE(AH3:AH10,AH15,AH23:AH54) ->  | AI55: =AVERAGE(AI3:AI10,AI15,AI23:AI54) -> 
B56: Class Gaming UHD | I56: =GEOMEAN(I11:I14,I19:I22) ->  | J56: =GEOMEAN(J11:J14,J19:J22) ->  | S56: =GEOMEAN(S11:S14,S19:S22) ->  | T56: =GEOMEAN(T11:T14,T19:T22) ->  | Z56: =AVERAGE(Z11,Z19) ->  | AA56: =AVERAGE(AA11,AA19) ->  | AB56: =AVERAGE(AB11,AB19) ->  | AC56: =AVERAGE(AC11,AC19) ->  | AD56: =AVERAGE(AD11,AD19) ->  | AE56: =AVERAGE(AE11,AE19) ->  | AH56: =AVERAGE(AH11,AH19) ->  | AI56: =AVERAGE(AI11,AI19) ->  | AJ56: =AVERAGE(AJ11,AJ19) -> 
B57: Class Gaming | I57: =GEOMEAN(I3:I54) ->  | L57: =GEOMEAN(L3:L54) ->  | S57: =GEOMEAN(S3:S54) ->  | V57: =GEOMEAN(V3:V54) ->  | W57: =GEOMEAN(W3:W54) ->  | X57: =GEOMEAN(X3:X54) ->  | Z57: =AVERAGE(Z3:Z54) ->  | AH57: =AVERAGE(AH3:AH54) ->  | AI57: =AVERAGE(AI3:AI54) ->  | AJ57: =AVERAGE(AJ3:AJ54) -> 
B58: All
